Workbook

Sheet Accueil
C14: Annexe au calcul des ajustements applicables aux taux des traitements non commerciaux 2022-2023 Forêt publique
C16: L'activation du contenu de ce fichier est requise afin d'assurer l'exécution des macro-commandes qui sont nécessaires à son bon fonctionnement.
C19: https://support.office.com/fr-fr/article/activer-ou-d%C3%A9sactiver-les-macros-dans-les-fichiers-office-12b036fd-d140-4e74-b45e-16fed1a7e5c6

Sheet Calculs - Ajustements (hidden)
A2: Annexe au calcul des ajustements applicables aux taux des traitements non commerciaux 2022-2023 Forêt publique
A3: *** Veuillez saisir les informations dans les cellules blanches seulement *** | G3: Version 3 : 2022-10-03
A4: Identification et paramètres du calcul des ajustements admissibles
A5: Nom du fichier de l'annexe au calcul du taux TSNC pour lequel les ajustements sont calculés
A6: Est-ce que l'ajustement au traitement d'exécution doit être calculé avec un bloc technique de suivi de conformité ? Calcul des ajustements pour le taux d'exécution seulement ou calcul des ajustements combinés pour le taux d'exécution et le suivi de conformité (incluant la délimitation physique ou virtuelle, le cas échéant). | G6: Inscrire une valeur
A7: Famille de traitements ou type d'activités Mode d'attribution du contrat : ERTS (gré à gré) | F7: =IFERROR(IF(EXACT($G$6,Menus!$A$10),"Famille_Type_EXE_SUIVI",IF(EXACT($G$6,Menus!$A$11),"Famille_Type_Tous")),"Famille_Type_Tous") -> FALSE
A8: Mode d'attribution du contrat | F8: =IF(OR(EXACT(UPPER($G$7),UPPER(Menus!$A$15)),,EXACT(UPPER($G$7),UPPER(Menus!$A$17)),EXACT(UPPER($G$7),UPPER(Menus!$A$18)),EXACT(UPPER($G$7),UPPER(Menus!$A$19)),EXACT(UPPER($G$7),UPPER(Menus!$A$20)),EXACT(UPPER($G$7),UPPER(Menus!$A$21)),EXACT(UPPER($G$7),UPPER(Menus!$A$22))),"Mode_attribution","Inscrire une valeur") -> Inscrire une valeur | G8: ERTS (gré à gré)
A9: Valeurs originales de l'annexe au calcul des taux TSNC
A10: Taux d'exécution de base ou taux de suivi de conformité ou valeur par unité de mesure payable ($/Unité) (hectare, Mplants, Mmicrosites, PE ou kilomètre)
A11: Taux de certaines majorations à l'exécution (∑), si applicable ($/Unité) Inscrire le montant par unité de mesure payable (hectare, Mplants, Mmicrosites, PE ou kilomètre) qui correspond à la sommation des majorations suivantes, selon la famille de traitements ou le type d'activités : • EC EAF : PE2 et activité de Délimitation physique (ruban) des sentiers de débardage • Éducation de peuplement : PE2 et DEGPM • Régénération artificielle : PE2 et RAPM • Traitements du site : PA0, PA1, PA2, PE1, PE2, PE3, PE4, DRAP et DMOD • Inventaire avant traitement, martelage et travaux techniques autres : aucune majoration
A12: Nombre total d'unités de mesure payables du traitement ou du type d'activité (hectare, Mplants, Mmicrosites, PE ou kilomètre)
A13: Taux d'exécution de base ou taux de suivi de conformité ou valeur et majorations admissibles, le cas échéant ($/Unité) | G13: =IFERROR(ROUND(SUM($G$10:$G$11),2),0) -> 0
A14: AO - Tous
A15: • Acquisition d’équipements de protection individuelle et sanitaire pour la réalisation des traitements excluant les besoins pour le transport, l’hébergement et la manutention des plants • Gestion, planification, sensibilisation, formation et logistique • Manutention des plants, si applicable
A16: Ajustement (%) | G16: =IFERROR(IF(EXACT($G$8,Menus!$A$4)=FALSE,VLOOKUP(CONCATENATE($G$7," — ",$G$8),Ajustement_1_EPIS_ERTS__125_AO,3,FALSE),0),0) -> 0
A17: Ajustement ($/Unité) | G17: =IFERROR($G$16*$G$13,0) -> 0
A18: AO - Tous
A19: Transport des travailleurs
A20: Type de transport
A21: Ajustement (%) | G21: =IFERROR(VLOOKUP(CONCATENATE($G$7," — ",$G$8," — ",$G$20),Ajustement_3_Transport_Tous,3,FALSE),0) -> 0
A22: Ajustement ($/Unité) | G22: =IFERROR($G$13*$G$21,0) -> 0
A23: AO - AVEC Hébergement
A24: Hébergement des travailleurs
A25: Type d'hébergement | F25: =IFERROR(IF(EXACT($G$8,Menus!$A$3)=TRUE,"Hebergement_SANS","Hebergement_AO"),"Hebergement_AO") -> Hebergement_AO
A26: Ajustement (%) | G26: =IFERROR(VLOOKUP(CONCATENATE($G$7," — ",$G$8&"NA"," — ",$G$25),Ajustement_4_Hebergement_Tous,3,FALSE),0) -> 0
A27: Ajustement ($/Unité) | G27: =IFERROR($G$13*$G$26,0) -> 0
A28: ERTS (gré à gré) - Tous
A29: Hausse des prix
A30: Ajustement (%) | G30: =IFERROR(IF(EXACT($G$8,Menus!$A$4),VLOOKUP(CONCATENATE($G$7," — ",$G$8),Ajustement_6_Carburant_ERTS,3,FALSE),0),0) -> 0
A31: Ajustement ($/Unité) | G31: =IFERROR($G$13*$G$30,0) -> 0
A32: Taux ajusté pour hausse des prix ($/Unité) | G32: =IFERROR(SUM($G$13)*(1+$G$30),0) -> 0
A33: ERTS (gré à gré) - Tous
A34: Acquisition d’équipements de protection individuelle et sanitaire pour la réalisation des traitements excluant les besoins pour le transport et l’hébergement
A35: Ajustement (%) | G35: =IFERROR(IF(EXACT($G$8,Menus!$A$4),VLOOKUP(CONCATENATE($G$7," — ",$G$8),Ajustement_1_EPIS_ERTS__125_AO,3,FALSE),0),0) -> 0
A36: Ajustement ($/Unité) | G36: =IFERROR($G$32*$G$35,0) -> 0
A37: ERTS (gré à gré) - Tous
A38: Gestion, planification, sensibilisation, formation et logistique
A39: Ajustement (%) | G39: =IFERROR(IF(EXACT($G$8,Menus!$A$4),VLOOKUP(CONCATENATE($G$7," — ",$G$8),Ajustement_2_GPSFL_ERTS,3,FALSE),0),0) -> 0
A40: Ajustement ($/Unité) | G40: =IFERROR($G$32*$G$39,0) -> 0
A41: ERTS (gré à gré) - Tous
A42: Transport des travailleurs (adaptation des véhicules et équipement de protection individuelle)
A43: Type de transport | F43: =IF(OR(EXACT(UPPER($G$7),UPPER(Menus!$A$17)),EXACT(UPPER($G$7),UPPER(Menus!$A$20))),"Transport_ERTS_TC","Transport_ERTS_Pas_TC") -> Transport_ERTS_Pas_TC
A44: Ajustement (%) | G44: =IFERROR(VLOOKUP(CONCATENATE($G$7," — ",$G$8," — ",$G$43),Ajustement_3_Transport_Tous,3,FALSE),0) -> 0
A45: Ajustement ($/Unité) | G45: =IFERROR($G$32*$G$44,0) -> 0
A46: ERTS (gré à gré) - Régénération artificielle
A47: Manutention des plants
A48: Ajustement (%) | G48: =IFERROR(VLOOKUP(CONCATENATE($G$7," — ",$G$8),Ajustement_5_Manutention_plants_ERTS,3,FALSE),0) -> 0
A49: Ajustement ($/Unité) | G49: =IFERROR($G$32*$G$48,0) -> 0
A50: ERTS (gré à gré) - Tous
A51: Hébergement des travailleurs
A52: Type d'hébergement | F52: =IFERROR(IF(EXACT(UPPER($G$43),UPPER(Menus!#REF!)),"Hebergement_ERTS_TC","Hebergement_ERTS"),"Hebergement_ERTS") -> Hebergement_ERTS
A53: Ajustement (%) | D53: =IF(EXACT(UPPER($G$8),UPPER(Menus!$A$4)),IF(OR(EXACT(UPPER($G$52),UPPER(Menus!$A$7)),EXACT(UPPER($G$52),UPPER(Menus!$A$33))),"","Maximum admissible : "),"") -> Maximum admissible : | F53: =IFERROR(IF(EXACT(UPPER($G$8),UPPER(Menus!$A$4)),IF(OR(EXACT(UPPER($G$52),UPPER(Menus!$A$7)),EXACT(UPPER($G$52),UPPER(Menus!$A$33))),"",VLOOKUP(CONCATENATE($G$7," — ",$G$8," — ",$G$52),Ajustement_4_Hebergement_Tous,3,FALSE)),""),0) -> 0 | G53: Inscrire une valeur
A54: Ajustement ($/Unité) | G54: =IF(EXACT(UPPER($G$52),UPPER(Menus!$A$33)),0,IF($G$53<=$F$53,$G$32*$G$53,0)) -> 0
A55: Bloc technique « suivi de conformité » avec l'exécution du traitement
A57: Valeurs originales de l'annexe au calcul des taux TSNC — Bloc technique « suivi de conformité »
A58: Taux de suivi de conformité ($/Unité) (hectare, Mplants, Mmicrosites ou kilomètre)
A59: Nombre total d'unités de mesure payables du traitement ou de l'activité (hectare, Mplants, Mmicrosites ou kilomètre)
A60: AO - Bloc technique - Tous
A61: • Acquisition d’équipements de protection individuelle et sanitaire pour la réalisation des traitements excluant les besoins pour le transport, l’hébergement et la manutention des plants • Gestion, planification, sensibilisation, formation et logistique • Manutention des plants, si applicable
A62: Ajustement (%) | G62: =IFERROR(IF(AND(EXACT(UPPER($G$8),UPPER(Menus!$A$4))=FALSE,EXACT(UPPER($G$6),UPPER(Menus!$A$10))),VLOOKUP(CONCATENATE(Menus!$A$22," — ",$G$8),Ajustement_1_EPIS_ERTS__125_AO,3,FALSE),0),0) -> 0
A63: Ajustement ($/Unité) | G63: =IFERROR($G$58*$G$62,0) -> 0
A64: AO - Bloc technique - Tous
A65: Transport des travailleurs
A66: Type de transport
A67: Ajustement (%) | G67: =IFERROR(VLOOKUP(CONCATENATE(Menus!$A$22," — ",$G$8," — ",$G$66),Ajustement_3_Transport_Tous,3,FALSE),0) -> 0
A68: Ajustement ($/Unité) | G68: =IFERROR($G$58*$G$67,0) -> 0
A69: AO - Bloc technique - AVEC Hébergement
A70: Hébergement des travailleurs
A71: Type d'hébergement | F71: =IFERROR(IF(EXACT($G$8,Menus!$A$3)=TRUE,"Hebergement_SANS","Hebergement_AO"),"Hebergement_AO") -> Hebergement_AO
A72: Ajustement (%) | G72: =IFERROR(VLOOKUP(CONCATENATE(Menus!$A$22," — ",$G$8&"NA"," — ",$G$71),Ajustement_4_Hebergement_Tous,3,FALSE),0) -> 0
A73: Ajustement ($/Unité) | G73: =IFERROR($G$58*$G$72,0) -> 0
A74: ERTS (gré à gré) - Bloc technique - Tous
A75: Hausse des prix
A76: Ajustement (%) | G76: =IFERROR(IF(EXACT($G$8,Menus!$A$4),VLOOKUP(CONCATENATE(Menus!$A$22," — ",$G$8),Ajustement_6_Carburant_ERTS,3,FALSE),0),0) -> 0.0535
A77: Ajustement ($/Unité) | G77: =IFERROR($G$58*$G$76,0) -> 0
A78: Taux ajusté pour hausse des prix ($/Unité) | G78: =IFERROR(SUM($G$58)*(1+$G$76),0) -> 0
A79: ERTS (gré à gré) - Bloc technique - Tous
A80: Acquisition d’équipements de protection individuelle et sanitaire pour la réalisation des traitements excluant les besoins pour le transport et l’hébergement
A81: Ajustement (%) | G81: =IFERROR(IF(EXACT($G$8,Menus!$A$4),VLOOKUP(CONCATENATE(Menus!$A$22," — ",$G$8),Ajustement_1_EPIS_ERTS__125_AO,3,FALSE),0),0) -> 0.0042
A82: Ajustement ($/Unité) | G82: =IFERROR($G$78*$G$81,0) -> 0
A83: ERTS (gré à gré) - Bloc technique - Tous
A84: Gestion, planification, sensibilisation, formation et logistique
A85: Ajustement (%) | G85: =IFERROR(IF(EXACT($G$8,Menus!$A$4),VLOOKUP(CONCATENATE(Menus!$A$22," — ",$G$8),Ajustement_2_GPSFL_ERTS,3,FALSE),0),0) -> 0.0053
A86: Ajustement ($/Unité) | G86: =IFERROR($G$78*$G$85,0) -> 0
A87: ERTS (gré à gré) - Bloc technique - Tous
A88: Transport des travailleurs (adaptation des véhicules et équipement de protection individuelle)
A89: Type de transport
A90: Ajustement (%) | G90: =IFERROR(VLOOKUP(CONCATENATE(Menus!$A$22," — ",$G$8," — ",$G$89),Ajustement_3_Transport_Tous,3,FALSE),0) -> 0
A91: Ajustement ($/Unité) | G91: =IFERROR($G$78*$G$90,0) -> 0
A92: ERTS (gré à gré) - Bloc technique - Tous
A93: Hébergement des travailleurs
A94: Type d'hébergement
A95: Ajustement (%) | D95: =IF(EXACT(UPPER($G$8),UPPER(Menus!$A$4)),IF(OR(EXACT(UPPER($G$94),UPPER(Menus!$A$7)),EXACT(UPPER($G$94),UPPER(Menus!$A$33))),"","Maximum admissible : "),"") -> Maximum admissible : | F95: =IFERROR(IF(EXACT(UPPER($G$8),UPPER(Menus!$A$4)),IF(OR(EXACT(UPPER($G$94),UPPER(Menus!$A$7)),EXACT(UPPER($G$94),UPPER(Menus!$A$33))),"",VLOOKUP(CONCATENATE(Menus!$A$22," — ",$G$8," — ",$G$94),Ajustement_4_Hebergement_Tous,3,FALSE)),""),0) -> 0 | G95: Inscrire une valeur
A96: Ajustement ($/Unité) | G96: =IF(EXACT(UPPER($G$94),UPPER(Menus!$A$33)),0,IF($G$95<=$F$95,$G$78*$G$95,0)) -> 0
A97: AO - Totaux - Tous
A98: Totaux
A99: Total des ajustements admissibles ($/Unité) La valeur des ajustements autres que celui pour la hausse des prix est calculée sur la base du taux ajusté pour la hausse des prix | G99: =IFERROR(IF(OR(ISBLANK($G$20),ISBLANK($G$25),EXACT(UPPER($G$20),UPPER(Menus!$A$7)),IF(EXACT(UPPER($G$8),UPPER(Menus!$A$2)),EXACT(UPPER($G$25),UPPER(Menus!$A$7))))=TRUE,0,ROUND(SUM($G$13*$G$16,$G$13*$G$21,$G$13*$G$26),2)),0) -> 0
A100: Total des ajustements admissibles — Bloc technique « suivi de conformité » ($/Unité) La valeur des ajustements autres que celui pour la hausse des prix est calculée sur la base du taux ajusté pour la hausse des prix | G100: =IFERROR(IF(OR(EXACT(UPPER($G$8),UPPER(Menus!$A$2)),EXACT(UPPER($G$8),UPPER(Menus!$A$3))),IF(OR(ISBLANK($G$66),EXACT(UPPER($G$66),UPPER(Menus!$A$7)))=TRUE,0,ROUND(SUM($G$58*$G$62,$G$58*$G$67,$G$58*$G$72),2)),0),0) -> 0
A101: Grand total admissible ($) | G101: =IFERROR(ROUND(SUM($G$12*$G$99,$G$59*$G$100),2),0) -> 0
A102: ERTS (gré à gré) - Totaux - Tous
A103: Totaux
A104: Total des ajustements admissibles ($/Unité) La valeur des ajustements autres que celui pour la hausse des prix est calculée sur la base du taux ajusté pour la hausse des prix | G104: =IFERROR(IF(EXACT(UPPER($G$8),UPPER(Menus!$A$4)),IF(OR(ISBLANK($G$43),ISBLANK($G$52),EXACT(UPPER($G$43),UPPER(Menus!$A$7)),EXACT(UPPER($G$52),UPPER(Menus!$A$7)),AND(EXACT(UPPER($G$52),UPPER(Hebergement_ERTS_TC)),$G$53>0),$G$53>$F$53)=TRUE,0,ROUND(SUM(($G$32-$G$13),$G$32*$G$35,$G$32*$G$39,$G$32*$G$44,$G$32*$G$48,$G$32*$G$53),2)),0),0) -> 0
A105: Total des ajustements admissibles — Bloc technique « suivi de conformité » ($/Unité) La valeur des ajustements autres que celui pour la hausse des prix est calculée sur la base du taux ajusté pour la hausse des prix | G105: =IFERROR(IF(EXACT(UPPER($G$8),UPPER(Menus!$A$4)),IF(OR(ISBLANK($G$89),ISBLANK($G$94),EXACT(UPPER($G$89),UPPER(Menus!$A$7)),EXACT(UPPER($G$94),UPPER(Menus!$A$7)),AND(EXACT(UPPER($G$94),UPPER(Hebergement_ERTS_TC)),$G$95>0),$G$95>$F$95)=TRUE,0,ROUND(SUM(($G$78-$G$58),$G$78*$G$81,$G$78*$G$85,$G$78*$G$90,$G$78*$G$95),2)),0),0) -> 0
A106: Grand total admissible ($) | G106: =IFERROR(ROUND(SUM($G$12*$G$104,$G$59*$G$105),2),0) -> 0
A108: Remarques
A110: J'atteste que les renseignements fournis dans ce document afin de calculer le taux du traitement sont complets et conformes à la vérité, au meilleur de mes connaissances.
A114: Nom et prénom de l'ingénieur forestier | G114: Numéro de permis
G115: =TODAY() -> 2022-10-03
A117: Signature de l'ingénieur forestier | G117: Date (AAAA-MM-JJ)
A120: Section réservée au suivi du contrat
B123: Nom du fichier : | C123: =IF($G$5<>"",$G$5,"") -> 
B124: Type d'ajustements : | C124: =IFERROR(IF(EXACT(UPPER($G$6),UPPER(Menus!$A$10)),"Exécution + suivi de conformité",IF(EXACT(UPPER($G$6),UPPER(Menus!$A$11)),"Exécution","")),"") -> 
B125: Numéro du contrat :
B126: Numéro du projet :
B127: U.G. :
B128: MRC :
B129: Code de traitement DICA :
B130: Code de traitement RATF :
B131: Famille ou type d'activité : | C131: =IF(OR(ISBLANK($G$7)=TRUE,EXACT(UPPER($G$7),UPPER(Inscrire_une_valeur))),"",CONCATENATE($G$7,IF(EXACT(UPPER($G$6),UPPER(Menus!$A$10))," - Avec suivi de conformité"," - Sans suivi de conformité"))) -> 
B132: Mode d'attribution : | C132: =IF(OR(ISBLANK($G$8)=TRUE,EXACT(UPPER($G$8),UPPER(Inscrire_une_valeur))),"",$G$8) -> ERTS (gré à gré)
B133: Valeur totale des ajustements : | C133: =$G$106 -> 0
B134: Nom de l'entrepreneur :
B135: Numéro de fournisseur :
B136: Date de début :
B137: Date de fin :
B138: Commentaires :

Sheet Info - Valeurs d'ajustement (hidden)
A1: Types d'ajustements possibles pour les mesures sanitaires (COVID-19) et la hausse des prix
A2: Élément 1 | B2: Acquisition d’équipements de protection individuelle et sanitaire pour la réalisation des traitements excluant les besoins pour le transport et l’hébergement
A3: Élément 2 | B3: Gestion, planification, sensibilisation, formation et logistique
A4: Élément 3 | B4: Transport des travailleurs
A5: Élément 4 | B5: Hébergement des travailleurs
A7: Élément 5 | B7: Ajustement pour la hausse des prix - s'applique sur le taux d'exécution avant les ajustements
A10: Forêt publique 2022-2023
A11: Synthèse des ajustements pour les mesures sanitaires (COVID-19) et la hausse des prix — travaux offerts en ERTS
A12: Éléments et valeurs d'ajustement → Familles de traitements ou types d'activités ↓ | B12: Acquisition d’équipement de protection individuelle (Élément 1) | C12: Gestion, planification, sensibilisation et formation et logistique (Élément 2) | D12: Ajustement transport (Élément 3) | G12: Ajustement du maximum admissible pour l'hébergement * (Élément 4) | J12: Ajustement pour la hausse des prix (Élément 5)
E13: Adaptation des véhicules et équipement de protection individuelle | G13: Location d'une chambre (Hôtel, pourvoirie, etc.) | H13: Camp forestier
A14: Traitements du site | B14: 0.0045 | C14: 0.0051 | D14: 0 | E14: 0 | F14: 0 | G14: 0.0925 | H14: 0.0231 | I14: 0 | J14: 0.1121
A15: Régénération artificielle | B15: 0.0013 | C15: 0.0062 | D15: 0 | E15: 0.0073 | F15: 0 | G15: 0.2103 | H15: 0.0526 | I15: 0 | J15: 0.0564
A16: Éducation de peuplement | B16: 0.0026 | C16: 0.0046 | D16: 0 | E16: 0.0284 | F16: 0 | G16: 0.2302 | H16: 0.0576 | I16: 0 | J16: 0.0483
A17: Travaux techniques autres | B17: 0.0042 | C17: 0.0053 | D17: 0 | E17: 0 | F17: 0 | G17: 0.1616 | H17: 0.0404 | I17: 0 | J17: 0.0535
A18: Inventaire avant traitement | B18: 0.0042 | C18: 0.0053 | D18: 0 | E18: 0.0231 | F18: 0 | G18: 0.1616 | H18: 0.0404 | I18: 0 | J18: 0.0535
A19: Martelage | B19: 0.0072 | C19: 0.0033 | D19: 0 | E19: 0.0396 | F19: 0 | G19: 0.111 | H19: 0.0277 | I19: 0 | J19: 0.0523
A20: EC EAF mécanisée | B20: 0.0045 | C20: 0.0051 | D20: 0 | E20: 0 | F20: 0 | G20: 0.0375 | H20: 0.0375 | I20: 0 | J20: 0.1377981938
A21: EC EAF manuelle | B21: 0.0045 | C21: 0.0051 | D21: 0 | E21: 0 | F21: 0 | G21: 0.0375 | H21: 0.0375 | I21: 0 | J21: 0.08620529686
A22: * La majoration de l'hébergement pour l'EC réservée aux entreprises d'aménagement forestier (EC EAF) n'est pas un maximum, l'ajustement de 3,75% additionnel est octroyé sur justification d'hébergement et de l'application de mesures sanitaires.
L23: 0.0502
A25: Forêt publique - Non applicable 2021-2022
A26: Synthèse des ajustements pour les mesures sanitaires (COVID-19) — travaux offerts en AO dont le prix soumis inclus l'hébergement
A27: Éléments et valeurs d'ajustement → Familles de traitement ou types d'activité ↓ | B27: Ajustement excluant le carburant, transport et hébergement (Éléments 1, 2 et 5) | C27: Ajustement transport (Élément 3) | E27: Ajustement pour l'hébergement (élément 4)
C28: Transport réduit (50 %) et équipement de protection individuelle | D28: Adaptation des véhicules et équipement de protection individuelle | E28: Location d'une chambre (Hôtel, pourvoirie, etc.) | F28: Camps forestier
A29: Traitements du site | B29: 0 | C29: 0 | D29: 0 | E29: 0 | F29: 0
A30: Régénération artificielle | B30: 0 | C30: 0 | D30: 0 | E30: 0 | F30: 0
A31: Éducation de peuplement | B31: 0 | C31: 0 | D31: 0 | E31: 0 | F31: 0
A32: Travaux techniques autres | B32: 0 | C32: 0 | D32: 0 | E32: 0 | F32: 0
A33: Inventaire avant traitement | B33: 0 | C33: 0 | D33: 0 | E33: 0 | F33: 0
A34: Martelage | B34: 0 | C34: 0 | D34: 0 | E34: 0 | F34: 0
A35: EC EAF | B35: 0 | C35: 0 | D35: 0 | E35: 0 | F35: 0
A38: Forêt publique - Non applicable 2021-2022
A39: Synthèse des ajustements pour les mesures sanitaires (COVID­19) — travaux offerts en AO sans hébergement
A40: Éléments et valeurs d'ajustement → Familles de traitement ou types d'activité ↓ | B40: Ajustement excluant le carburant, transport et hébergement (Éléments 1, 2 et 5) | C40: Ajustement transport (Élément 3)
C41: Transport réduit (50 %) et équipement de protection individuelle | D41: Adaptation des véhicules et équipement de protection individuelle
A42: Traitements du site | B42: 0 | C42: 0 | D42: 0
A43: Régénération artificielle | B43: 0 | C43: 0 | D43: 0
A44: Éducation de peuplement | B44: 0 | C44: 0 | D44: 0
A45: Travaux techniques autres | B45: 0 | C45: 0 | D45: 0
A46: Inventaire avant traitement | B46: 0 | C46: 0 | D46: 0
A47: Martelage | B47: 0 | C47: 0 | D47: 0
A48: EC EAF | B48: 0 | C48: 0 | D48: 0

Sheet Info - Majorations applicables (hidden)
A1: Fichier de détermination du taux | B1: Onglet du fichier de détermination du taux | C1: Famille de traitements ou type d'activité à utiliser aux fins du calcul des ajustements | D1: Traitement | E1: Équipement ou modalité | F1: Majoration 1 | G1: Majoration 2 | H1: Majoration 3 | I1: Majoration 4 | J1: Remarques
A2: Annexe TSNC | B2: Traitements du site | C2: Traitements du site | D2: Déblaiement des résidus de coupe | E2: Abatteuse groupeuse après feux | F2: PE2 | G2: DMOD | H2: - | I2: - | J2: PE2 (pente) et DMOD (productivité modérée)
A3: Annexe TSNC | B3: Traitements du site | C3: Traitements du site | D3: Déblaiement des résidus de coupe | E3: Bouteur avec pelle râteau | F3: PE4 | G3: DMOD | H3: - | I3: - | J3: PE4 (pente) et DMOD (productivité modérée)
A4: Annexe TSNC | B4: Traitements du site | C4: Traitements du site | D4: Déblaiement des résidus de coupe | E4: Excavatrice ou débusqueuse ou abatteuse | F4: PE2 | G4: PE3 | H4: DMOD | I4: - | J4: PE2 (pente, excavatrice et abatteuse) ou PE3 (pente, débusqueuse) et DMOD (productivité modérée)
A5: Annexe TSNC | B5: Traitements du site | C5: Régénération artificielle | D5: Fertilisation du peuplier hybride | E5: S/O | F5: PE2 | G5: - | H5: - | I5: - | J5: PE2 (pente)
A6: Annexe TSNC | B6: Traitements du site | C6: Traitements du site | D6: Scarifiage par mixage (hersage/labourage) | E6: Herses forestières | F6: PA2 | G6: PE2 | H6: DRAP | I6: - | J6: PA2 (nombre passages), PE2 (pente) et DRAP (productivité élevée)
A7: Annexe TSNC | B7: Traitements du site | C7: Régénération artificielle | D7: Scarifiage par mixage par placeaux | E7: Taupe ou pioche forestière | F7: - | G7: - | H7: - | I7: - | J7: Aucune
A8: Annexe TSNC | B8: Traitements du site | C8: Traitements du site | D8: Scarifiage par monticules avec scarificateur | E8: Bracke M-36a avec débardeur | F8: PE1 | G8: DRAP | H8: - | I8: - | J8: PE1 (pente) et DRAP (productivité élevée)
A9: Annexe TSNC | B9: Traitements du site | C9: Traitements du site | D9: Scarifiage par monticules avec scarificateur | E9: Bracke M-36a avec porteur ou débardeur à six roues | F9: PE1 | G9: DRAP | H9: - | I9: - | J9: PE1 (pente) et DRAP (productivité élevée)
A10: Annexe TSNC | B10: Traitements du site | C10: Traitements du site | D10: Scarifiage par monticules ou inversion par placeaux ou décapage par placeaux | E10: Excavatrice | F10: PE2 | G10: DMOD | H10: - | I10: - | J10: PE2 (pente) et DMOD (productivité modérée)
A11: Annexe TSNC | B11: Traitements du site | C11: Traitements du site | D11: Scarifiage par sillons continus ou discontinus avec scarificateur | E11: Bracke T-26 avec débardeur, Types TTS hydrauliques ou Donaren | F11: PA0 | G11: PA1 | H11: PE1 | I11: DRAP | J11: PA0 (distance passages), PA1 (nombre passages), PE1 (pente) et DRAP (productivité élevée)
A12: Annexe TSNC | B12: Traitements du site | C12: Traitements du site | D12: Scarifiage par sillons continus ou discontinus avec scarificateur | E12: Bracke T-26 avec porteur ou débardeur à six roues | F12: PA0 | G12: PA1 | H12: PE1 | I12: DRAP | J12: PA0 (distance passages), PA1 (nombre passages), PE1 (pente) et DRAP (productivité élevée)
A13: Annexe TSNC | B13: Traitements du site | C13: Traitements du site | D13: Scarifiage par sillons continus ou discontinus avec scarificateur | E13: Types TTS passifs | F13: PA0 | G13: PA1 | H13: PE1 | I13: DRAP | J13: PA0 (distance passages), PA1 (nombre passages), PE1 (pente) et DRAP (productivité élevée)
A14: Annexe TSNC - PATS | B14: Traitements du site - PATS | C14: Traitements du site | D14: Broyage forestier | E14: Compétition ligneuse et déchets de coupe avec récolte, Compétition ligneuse, déchets de coupe et tiges rémanentes avec récolte, Peuplement pré-mature avec épidémie sévère et sans récolte | F14: PE2 | G14: DMOD | H14: - | I14: - | J14: PE2 (pente) et DMOD (productivité modérée)
A15: Annexe TSNC - PATS | B15: Traitements du site - PATS | C15: Traitements du site | D15: Déblaiement après perturbation naturelle sans récolte | E15: Abatteuse groupeuse | F15: PE2 | G15: DMOD | H15: - | I15: - | J15: PE2 (pente) et DMOD (productivité modérée)
A16: Annexe TSNC - PATS | B16: Traitements du site - PATS | C16: Traitements du site | D16: Déblaiement des résidus de coupe | E16: Bouteur avec pelle modifiée | F16: PE4 | G16: DMOD | H16: - | I16: - | J16: PE4 (pente) et DMOD (productivité modérée)
A17: Annexe TSNC - PATS | B17: Traitements du site - PATS | C17: Traitements du site | D17: Déblaiement des résidus de coupe combiné à un scarifiage en monticules | E17: Excavatrice | F17: PE2 | G17: DMOD | H17: - | I17: - | J17: PE2 (pente) et DMOD (productivité modérée)
A18: Annexe TSNC - PATS | B18: Traitements du site - PATS | C18: Traitements du site | D18: Déblaiement d'hiver de la végétation | E18: Bouteur avec lame tranchante | F18: PE4 | G18: DMOD | H18: - | I18: - | J18: PE4 (pente) et DMOD (productivité modérée)
A19: Annexe TSNC - PATS | B19: Traitements du site - PATS | C19: Traitements du site | D19: Déblaiement d'un peuplement sans perturbation naturelle et sans récolte | E19: Excavatrice ou débusqueuse | F19: PE2 | G19: DMOD | H19: - | I19: - | J19: PE2 (pente) et DMOD (productivité modérée)
A20: Annexe TSNC - PATS | B20: Traitements du site - PATS | C20: Éducation de peuplement | D20: Débroussaillement manuel | E20: Difficulté faible, Difficulté moyenne OU difficulté élevée et densité faible (moins de 20 000 ti/ha), Difficulté élevée et densité moyenne (20 000 à 30 000 ti/ha), Difficulté élevée et densité forte (plus de 30 000 ti/ha) | F20: PE2 | G20: - | H20: - | I20: - | J20: PE2 (pente)
A21: Annexe TSNC - PATS | B21: Traitements du site - PATS | C21: Traitements du site | D21: Scarifiage par monticules et tranchées | E21: Excavatrice pour le PEH | F21: PE2 | G21: DMOD | H21: - | I21: - | J21: PE2 (pente) et DMOD (productivité modérée)
A22: Tous | B22: Traitements du site (suivi de conformité) | C22: Travaux techniques autres | D22: Délimitation physique ou virtuelle et suivi de conformité | E22: S/O | F22: - | G22: - | H22: - | I22: - | J22: Aucune
A23: Annexe TSNC | B23: Éducation de peuplement | C23: Éducation de peuplement | D23: Dégagement mécanique | E23: S/O | F23: PE2 | G23: DEGPM | H23: - | I23: - | J23: PE2 (pente) et DEGPM (préparation de terrain avec excavatrice par monticules ou par placeaux)
A24: Annexe TSNC | B24: Éducation de peuplement | C24: Éducation de peuplement | D24: Éclaircie précommerciale systématique d'un peuplement résineux ou du peuplier | E24: S/O | F24: PE2 | G24: - | H24: - | I24: - | J24: PE2 (pente)
A25: Annexe TSNC | B25: Éducation de peuplement | C25: Éducation de peuplement | D25: Élagage à des fins de qualité pour le pin blanc et le pin rouge | E25: S/O | F25: PE2 | G25: - | H25: - | I25: - | J25: PE2 (pente)
A26: Annexe TSNC | B26: Éducation de peuplement | C26: Éducation de peuplement | D26: EPC par puits de lumière ET Taille de formation avec martelage | E26: S/O | F26: PE2 | G26: - | H26: - | I26: - | J26: PE2 (pente)
A27: Annexe TSNC | B27: Éducation de peuplement | C27: Éducation de peuplement | D27: Nettoiement d'un peuplement résineux ou mixte à dominance de résineux (MR­FI) | E27: S/O | F27: PE2 | G27: - | H27: - | I27: - | J27: PE2 (pente)
A28: Annexe TSNC | B28: Éducation de peuplement | C28: Éducation de peuplement | D28: Taille phytosanitaire | E28: S/O | F28: PE2 | G28: - | H28: - | I28: - | J28: PE2 (pente)
A29: Annexe TSNC - PATS | B29: Éducation de peuplement - PATS | C29: Éducation de peuplement | D29: Débroussaillement manuel interplaceaux | E29: S/O | F29: PE2 | G29: - | H29: - | I29: - | J29: PE2 (pente)
A30: Annexe TSNC - PATS | B30: Éducation de peuplement - PATS | C30: Éducation de peuplement | D30: Dépressage | E30: Hauteur du peuplement ≤ 2,5 m : 2 m layons x 4 m entraxes (peuplement résiduel), Hauteur du peuplement > 2,5 m : 3 m layons x 4 m entraxes (peuplement résiduel) | F30: PE2 | G30: - | H30: - | I30: - | J30: PE2 (pente)
A31: Annexe TSNC - PATS | B31: Éducation de peuplement - PATS | C31: Éducation de peuplement | D31: Nettoiement d'un peuplement résineux ou mixte à dominance de résineux (MR­FI) réalisé dans des conditions spécifiques | E31: S/O | F31: PE2 | G31: - | H31: - | I31: - | J31: PE2 (pente)
A32: Annexe TSNC - PATS | B32: Éducation de peuplement - PATS | C32: Éducation de peuplement | D32: Nettoiement sous couvert d’un peuplement de feuillus tolérants | E32: S/O | F32: PE2 | G32: - | H32: - | I32: - | J32: PE2 (pente)
A33: Tous | B33: Éducation de peuplement (suivi de conformité) | C33: Travaux techniques autres | D33: Délimitation et suivi de conformité | E33: S/O | F33: - | G33: - | H33: - | I33: - | J33: Aucune
A34: Annexe TSNC | B34: Régénération artificielle | C34: Régénération artificielle | D34: Ensemencement terrestre manuel | E34: S/O | F34: PE2 | G34: - | H34: - | I34: - | J34: PE2 (pente)
A35: Annexe TSNC | B35: Régénération artificielle | C35: Régénération artificielle | D35: Plantation uniforme et regarni en plein manuel sauf PEH | E35: S/O | F35: RAPM | G35: - | H35: - | I35: - | J35: RAPM (préparation de terrain avec excavatrice par monticules ou par placeaux)
A36: Annexe TSNC | B36: Régénération artificielle | C36: Régénération artificielle | D36: Plantation uniforme et regarni en plein manuel sentier préparé sauf PEH | E36: S/O | F36: RAPM | G36: - | H36: - | I36: - | J36: RAPM (préparation de terrain avec excavatrice par monticules ou par placeaux)
A37: Annexe TSNC | B37: Régénération artificielle | C37: Traitements du site | D37: Plantation uniforme et regarni mécanique (Scarificateur­planteur Bracke P­11a) | E37: Gabarit et densité | F37: - | G37: - | H37: - | I37: - | J37: Aucune
A38: Annexe TSNC | B38: Régénération artificielle | C38: Régénération artificielle | D38: Plantation uniforme PEH | E38: S/O | F38: RAPM | G38: - | H38: - | I38: - | J38: RAPM (préparation de terrain avec excavatrice par monticules ou par placeaux)
A39: Annexe TSNC | B39: Régénération artificielle | C39: Régénération artificielle | D39: Regarni de sentier et plantation d'enrichissement manuel sauf PEH | E39: S/O | F39: RAPM | G39: - | H39: - | I39: - | J39: RAPM (préparation de terrain avec excavatrice par monticules ou par placeaux)
A40: Annexe TSNC | B40: Régénération artificielle (suivi de conformité) | C40: Travaux techniques autres | D40: Suivi de conformité | E40: S/O | F40: - | G40: - | H40: - | I40: - | J40: Aucune
A41: Annexe TSNC | B41: Éclaircie commerciale EAF | C41: EC EAF | D41: Éclaircie commerciale EAF | E41: S/O | F41: PE2 | G41: Délimitation | H41: - | I41: - | J41: PE2 (pente) et activité de Délimitation physique (ruban) des sentiers de débardage
A42: Annexe TSNC | B42: Martelage | C42: Martelage | D42: Martelage | E42: S/O | F42: - | G42: - | H42: - | I42: - | J42: Aucune
A43: Annexe TSNC | B43: Martelage | C43: Martelage | D43: Martelage négatif - EC (résineux ou mixte résineux) | E43: S/O | F43: - | G43: - | H43: - | I43: - | J43: Aucune
A44: Annexe TSNC | B44: Martelage | C44: Martelage | D44: Martelage positif - EC (résineux ou mixte résineux) | E44: S/O | F44: - | G44: - | H44: - | I44: - | J44: Aucune
A45: Annexe TSNC | B45: Martelage (suivi de conformité) | C45: Travaux techniques autres | D45: Délimitation et suivi de conformité | E45: S/O | F45: - | G45: - | H45: - | I45: - | J45: Aucune
A46: Tous | B46: Travaux de planif et techniques, Suivi d'efficacité | C46: Inventaire avant traitement | D46: Inventaire avant traitement, SI recherché, SI proposé, plan de sondage et suivi d'efficacité | E46: S/O | F46: - | G46: - | H46: - | I46: - | J46: Aucune
A47: Annexe TSNC | B47: Travaux de planif et techniques | C47: Inventaire avant traitement | D47: Délimitation réalisée par une tierce partie | E47: S/O | F47: - | G47: - | H47: - | I47: - | J47: Aucune

Sheet Versions du fichier (hidden)
A1: Suivi des versions de l'annexe au calcul des ajustements applicables aux taux des traitements non commerciaux 2022-2023 Forêt publique | U1: Version 3 : 2022-10-03 | AG1: =TODAY() -> 2022-10-03
A2: 0
A3: Version 1 | B3: Nom du fichier : | C3: Annexe_calcul_ajustements_TSNC_2022-2023_2022-04-27.xlsm
A4: =A3 -> Version 1 | B4: Date de mise en ligne : | C4: 2022-04-27 ou dans les jours suivants.
A5: =A4 -> Version 1 | B5: Remarques : | C5: • Version officielle
A6: =A5 -> Version 1
A7: Version 2 | B7: Nom du fichier : | C7: Annexe_calcul_ajustements_TSNC_2022-2023_2022-06-14.xlsm
A8: Version 2 | B8: Date de mise en ligne : | C8: 2022-06-14 ou dans les jours suivants.
A9: Version 3 2022-10-03 | B9: Nom du fichier : | C9: Annexe_calcul_ajustements_TSNC_2022-2023_2022-10-03.xlsm
A10: Version 3 | B10: Nom du fichier : | C10: Annexe_calcul_ajustements_TSNC_2022-2023_2022-10-03.xlsm
B11: Date de mise en ligne : | C11: 2022-10-03
B12: Remarques : | C12: •

Sheet Menus (hidden)
A1: Mode d'attribution: 2022-2023 est ERTS seulement
A2: AO - AVEC hébergement
A3: AO - SANS hébergement
A4: ERTS (gré à gré)
A6: Inscrire une valeur
A7: Inscrire une valeur
A9: Question
A10: Oui
A11: Non
A12: Sans objet
A14: Famille ou type - Tous
A15: EC EAF manuelle
A16: EC EAF mécanisée
A17: Éducation de peuplement
A18: Inventaire avant traitement
A19: Martelage
A20: Régénération artificielle
A21: Traitements du site
A22: Travaux techniques autres
A24: Famille ou type - EXE+SUIVI
A25: Éducation de peuplement
A26: Martelage
A27: Régénération artificielle
A28: Traitements du site
A30: Travaux techniques autres
A31: Camp forestier
A32: Hébergement adéquat (hôtel, pourvoirie ou autre unité individuelle)
A33: SANS hébergement
A35: Type d'hébergement SANS
A36: SANS hébergement
A38: Transport ERTS
A39: Adaptation des véhicules et ÉPI
A41: Transport AO
A42: Adaptation des véhicules et ÉPI

Sheet Ajustements (hidden)
A1: Ajustement 1 — ERTS Ajustements 1-2-5 — AO | B1: Acquisition d’équipements de protection individuelle et sanitaire pour la réalisation des traitements excluant les besoins pour le transport, l’hébergement et la manutention des plants
A2: Famille ou type | B2: Mode d'attribution | C2: Concatener (RechercheV) | D2: Valeur brute | E2: Valeur nette
A3: =Menus!$A$15 -> EC EAF manuelle | B3: =Menus!$A$2 -> AO - AVEC hébergement | C3: =CONCATENATE(A3," — ",B3) -> EC EAF manuelle — AO - AVEC hébergement | D3: =IFERROR(VLOOKUP(A3,'Info - Valeurs d''ajustement'!$A$29:$F$35,2,FALSE),0) -> 0 | E3: =ROUND(D3,4) -> 0
A4: =Menus!$A$15 -> EC EAF manuelle | B4: =Menus!$A$3 -> AO - SANS hébergement | C4: EC EAF manuelle — AO - SANS hébergement | D4: =IFERROR(VLOOKUP(A4,'Info - Valeurs d''ajustement'!$A$42:$D$48,2,FALSE),0) -> 0 | E4: 0
A5: =Menus!$A$15 -> EC EAF manuelle | B5: =Menus!$A$4 -> ERTS (gré à gré) | C5: EC EAF manuelle — ERTS (gré à gré) | D5: =VLOOKUP(A5,'Info - Valeurs d''ajustement'!$A$14:$J$21,2,FALSE) -> 0.0045 | E5: 0.0045
A6: =Menus!$A$16 -> EC EAF mécanisée | B6: =Menus!$A$2 -> AO - AVEC hébergement | C6: =CONCATENATE(A6," — ",B6) -> EC EAF mécanisée — AO - AVEC hébergement | D6: =IFERROR(VLOOKUP(A6,'Info - Valeurs d''ajustement'!$A$29:$F$35,2,FALSE),0) -> 0 | E6: =ROUND(D6,4) -> 0
A7: =Menus!$A$16 -> EC EAF mécanisée | B7: =Menus!$A$3 -> AO - SANS hébergement | C7: EC EAF mécanisée — AO - SANS hébergement | D7: =IFERROR(VLOOKUP(A7,'Info - Valeurs d''ajustement'!$A$42:$D$48,2,FALSE),0) -> 0 | E7: 0
A8: =Menus!$A$16 -> EC EAF mécanisée | B8: =Menus!$A$4 -> ERTS (gré à gré) | C8: EC EAF mécanisée — ERTS (gré à gré) | D8: =VLOOKUP(A8,'Info - Valeurs d''ajustement'!$A$14:$J$21,2,FALSE) -> 0.0045 | E8: 0.0045
A9: =Menus!$A$17 -> Éducation de peuplement | B9: =Menus!$A$2 -> AO - AVEC hébergement | C9: Éducation de peuplement — AO - AVEC hébergement | D9: =VLOOKUP(A9,'Info - Valeurs d''ajustement'!$A$29:$F$35,2,FALSE) -> 0 | E9: 0
A10: =Menus!$A$17 -> Éducation de peuplement | B10: =Menus!$A$3 -> AO - SANS hébergement | C10: Éducation de peuplement — AO - SANS hébergement | D10: =VLOOKUP(A10,'Info - Valeurs d''ajustement'!$A$42:$D$48,2,FALSE) -> 0 | E10: 0
A11: =Menus!$A$17 -> Éducation de peuplement | B11: =Menus!$A$4 -> ERTS (gré à gré) | C11: Éducation de peuplement — ERTS (gré à gré) | D11: =VLOOKUP(A11,'Info - Valeurs d''ajustement'!$A$14:$J$21,2,FALSE) -> 0.0026 | E11: 0.0026
A12: =Menus!$A$18 -> Inventaire avant traitement | B12: =Menus!$A$2 -> AO - AVEC hébergement | C12: Inventaire avant traitement — AO - AVEC hébergement | D12: =VLOOKUP(A12,'Info - Valeurs d''ajustement'!$A$29:$F$35,2,FALSE) -> 0 | E12: 0
A13: =Menus!$A$18 -> Inventaire avant traitement | B13: =Menus!$A$3 -> AO - SANS hébergement | C13: Inventaire avant traitement — AO - SANS hébergement | D13: =VLOOKUP(A13,'Info - Valeurs d''ajustement'!$A$42:$D$48,2,FALSE) -> 0 | E13: 0
A14: =Menus!$A$18 -> Inventaire avant traitement | B14: =Menus!$A$4 -> ERTS (gré à gré) | C14: Inventaire avant traitement — ERTS (gré à gré) | D14: =VLOOKUP(A14,'Info - Valeurs d''ajustement'!$A$14:$J$21,2,FALSE) -> 0.0042 | E14: 0.0042
A15: =Menus!$A$19 -> Martelage | B15: =Menus!$A$2 -> AO - AVEC hébergement | C15: Martelage — AO - AVEC hébergement | D15: =VLOOKUP(A15,'Info - Valeurs d''ajustement'!$A$29:$F$35,2,FALSE) -> 0 | E15: 0
A16: =Menus!$A$19 -> Martelage | B16: =Menus!$A$3 -> AO - SANS hébergement | C16: Martelage — AO - SANS hébergement | D16: =VLOOKUP(A16,'Info - Valeurs d''ajustement'!$A$42:$D$48,2,FALSE) -> 0 | E16: 0
A17: =Menus!$A$19 -> Martelage | B17: =Menus!$A$4 -> ERTS (gré à gré) | C17: Martelage — ERTS (gré à gré) | D17: =VLOOKUP(A17,'Info - Valeurs d''ajustement'!$A$14:$J$21,2,FALSE) -> 0.0072 | E17: 0.0072
A18: =Menus!$A$20 -> Régénération artificielle | B18: =Menus!$A$2 -> AO - AVEC hébergement | C18: Régénération artificielle — AO - AVEC hébergement | D18: =VLOOKUP(A18,'Info - Valeurs d''ajustement'!$A$29:$F$35,2,FALSE) -> 0 | E18: 0
A19: =Menus!$A$20 -> Régénération artificielle | B19: =Menus!$A$3 -> AO - SANS hébergement | C19: Régénération artificielle — AO - SANS hébergement | D19: =VLOOKUP(A19,'Info - Valeurs d''ajustement'!$A$42:$D$48,2,FALSE) -> 0 | E19: 0
A20: =Menus!$A$20 -> Régénération artificielle | B20: =Menus!$A$4 -> ERTS (gré à gré) | C20: Régénération artificielle — ERTS (gré à gré) | D20: =VLOOKUP(A20,'Info - Valeurs d''ajustement'!$A$14:$J$21,2,FALSE) -> 0.0013 | E20: 0.0013
A21: =Menus!$A$21 -> Traitements du site | B21: =Menus!$A$2 -> AO - AVEC hébergement | C21: Traitements du site — AO - AVEC hébergement | D21: =VLOOKUP(A21,'Info - Valeurs d''ajustement'!$A$29:$F$35,2,FALSE) -> 0 | E21: 0
A22: =Menus!$A$21 -> Traitements du site | B22: =Menus!$A$3 -> AO - SANS hébergement | C22: Traitements du site — AO - SANS hébergement | D22: =VLOOKUP(A22,'Info - Valeurs d''ajustement'!$A$42:$D$48,2,FALSE) -> 0 | E22: 0
A23: =Menus!$A$21 -> Traitements du site | B23: =Menus!$A$4 -> ERTS (gré à gré) | C23: Traitements du site — ERTS (gré à gré) | D23: =VLOOKUP(A23,'Info - Valeurs d''ajustement'!$A$14:$J$21,2,FALSE) -> 0.0045 | E23: 0.0045
A24: =Menus!$A$22 -> Travaux techniques autres | B24: =Menus!$A$2 -> AO - AVEC hébergement | C24: Travaux techniques autres — AO - AVEC hébergement | D24: =VLOOKUP(A24,'Info - Valeurs d''ajustement'!$A$29:$F$35,2,FALSE) -> 0 | E24: 0
A25: =Menus!$A$22 -> Travaux techniques autres | B25: =Menus!$A$3 -> AO - SANS hébergement | C25: Travaux techniques autres — AO - SANS hébergement | D25: =VLOOKUP(A25,'Info - Valeurs d''ajustement'!$A$42:$D$48,2,FALSE) -> 0 | E25: 0
A26: =Menus!$A$22 -> Travaux techniques autres | B26: =Menus!$A$4 -> ERTS (gré à gré) | C26: Travaux techniques autres — ERTS (gré à gré) | D26: =VLOOKUP(A26,'Info - Valeurs d''ajustement'!$A$14:$J$21,2,FALSE) -> 0.0042 | E26: 0.0042
A28: Ajustement 2 | B28: Gestion, planification, sensibilisation et formation et logistique
A29: Famille ou type | B29: Mode d'attribution | C29: Concatener (RechercheV) | D29: Valeur brute | E29: Valeur nette
A30: =Menus!$A$15 -> EC EAF manuelle | B30: =Menus!$A$2 -> AO - AVEC hébergement | C30: =CONCATENATE(A30," — ",B30) -> EC EAF manuelle — AO - AVEC hébergement | D30: 0 | E30: =ROUND(D30,4) -> 0
A31: =Menus!$A$15 -> EC EAF manuelle | B31: =Menus!$A$3 -> AO - SANS hébergement | C31: EC EAF manuelle — AO - SANS hébergement | D31: 0 | E31: 0
A32: =Menus!$A$15 -> EC EAF manuelle | B32: =Menus!$A$4 -> ERTS (gré à gré) | C32: EC EAF manuelle — ERTS (gré à gré) | D32: =VLOOKUP(A32,'Info - Valeurs d''ajustement'!$A$14:$J$21,3,FALSE) -> 0.0051 | E32: 0.0051
A33: =Menus!$A$16 -> EC EAF mécanisée | B33: =Menus!$A$2 -> AO - AVEC hébergement | C33: =CONCATENATE(A33," — ",B33) -> EC EAF mécanisée — AO - AVEC hébergement | D33: 0 | E33: =ROUND(D33,4) -> 0
A34: =Menus!$A$16 -> EC EAF mécanisée | B34: =Menus!$A$3 -> AO - SANS hébergement | C34: EC EAF mécanisée — AO - SANS hébergement | D34: 0 | E34: 0
A35: =Menus!$A$16 -> EC EAF mécanisée | B35: =Menus!$A$4 -> ERTS (gré à gré) | C35: EC EAF mécanisée — ERTS (gré à gré) | D35: =VLOOKUP(A35,'Info - Valeurs d''ajustement'!$A$14:$J$21,3,FALSE) -> 0.0051 | E35: 0.0051
A36: =Menus!$A$17 -> Éducation de peuplement | B36: =Menus!$A$2 -> AO - AVEC hébergement | C36: Éducation de peuplement — AO - AVEC hébergement | D36: 0 | E36: 0
A37: =Menus!$A$17 -> Éducation de peuplement | B37: =Menus!$A$3 -> AO - SANS hébergement | C37: Éducation de peuplement — AO - SANS hébergement | D37: 0 | E37: 0
A38: =Menus!$A$17 -> Éducation de peuplement | B38: =Menus!$A$4 -> ERTS (gré à gré) | C38: Éducation de peuplement — ERTS (gré à gré) | D38: =VLOOKUP(A38,'Info - Valeurs d''ajustement'!$A$14:$J$21,3,FALSE) -> 0.0046 | E38: 0.0046
A39: =Menus!$A$18 -> Inventaire avant traitement | B39: =Menus!$A$2 -> AO - AVEC hébergement | C39: Inventaire avant traitement — AO - AVEC hébergement | D39: 0 | E39: 0
A40: =Menus!$A$18 -> Inventaire avant traitement | B40: =Menus!$A$3 -> AO - SANS hébergement | C40: Inventaire avant traitement — AO - SANS hébergement | D40: 0 | E40: 0
A41: =Menus!$A$18 -> Inventaire avant traitement | B41: =Menus!$A$4 -> ERTS (gré à gré) | C41: Inventaire avant traitement — ERTS (gré à gré) | D41: =VLOOKUP(A41,'Info - Valeurs d''ajustement'!$A$14:$I$21,3,FALSE) -> 0.0053 | E41: 0.0053
A42: =Menus!$A$19 -> Martelage | B42: =Menus!$A$2 -> AO - AVEC hébergement | C42: Martelage — AO - AVEC hébergement | D42: 0 | E42: 0
A43: =Menus!$A$19 -> Martelage | B43: =Menus!$A$3 -> AO - SANS hébergement | C43: Martelage — AO - SANS hébergement | D43: 0 | E43: 0
A44: =Menus!$A$19 -> Martelage | B44: =Menus!$A$4 -> ERTS (gré à gré) | C44: Martelage — ERTS (gré à gré) | D44: =VLOOKUP(A44,'Info - Valeurs d''ajustement'!$A$14:$J$21,3,FALSE) -> 0.0033 | E44: 0.0033
A45: =Menus!$A$20 -> Régénération artificielle | B45: =Menus!$A$2 -> AO - AVEC hébergement | C45: Régénération artificielle — AO - AVEC hébergement | D45: 0 | E45: 0
A46: =Menus!$A$20 -> Régénération artificielle | B46: =Menus!$A$3 -> AO - SANS hébergement | C46: Régénération artificielle — AO - SANS hébergement | D46: 0 | E46: 0
A47: =Menus!$A$20 -> Régénération artificielle | B47: =Menus!$A$4 -> ERTS (gré à gré) | C47: Régénération artificielle — ERTS (gré à gré) | D47: =VLOOKUP(A47,'Info - Valeurs d''ajustement'!$A$14:$J$21,3,FALSE) -> 0.0062 | E47: 0.0062
A48: =Menus!$A$21 -> Traitements du site | B48: =Menus!$A$2 -> AO - AVEC hébergement | C48: Traitements du site — AO - AVEC hébergement | D48: 0 | E48: 0
A49: =Menus!$A$21 -> Traitements du site | B49: =Menus!$A$3 -> AO - SANS hébergement | C49: Traitements du site — AO - SANS hébergement | D49: 0 | E49: 0
A50: =Menus!$A$21 -> Traitements du site | B50: =Menus!$A$4 -> ERTS (gré à gré) | C50: Traitements du site — ERTS (gré à gré) | D50: =VLOOKUP(A50,'Info - Valeurs d''ajustement'!$A$14:$J$21,3,FALSE) -> 0.0051 | E50: 0.0051
A51: =Menus!$A$22 -> Travaux techniques autres | B51: =Menus!$A$2 -> AO - AVEC hébergement | C51: Travaux techniques autres — AO - AVEC hébergement | D51: 0 | E51: 0
A52: =Menus!$A$22 -> Travaux techniques autres | B52: =Menus!$A$3 -> AO - SANS hébergement | C52: Travaux techniques autres — AO - SANS hébergement | D52: 0 | E52: 0
A53: =Menus!$A$22 -> Travaux techniques autres | B53: =Menus!$A$4 -> ERTS (gré à gré) | C53: Travaux techniques autres — ERTS (gré à gré) | D53: =VLOOKUP(A53,'Info - Valeurs d''ajustement'!$A$14:$J$21,3,FALSE) -> 0.0053 | E53: 0.0053
A55: Ajustement 3 | B55: Transport des travailleurs (1 élément seulement)
A56: Famille ou type | B56: Mode d'attribution | C56: Transport | D56: Concatener (RechercheV) | E56: Valeur brute | F56: Valeur nette
A57: =Menus!$A$15 -> EC EAF manuelle | B57: =Menus!$A$2 -> AO - AVEC hébergement | C57: =Menus!$A$42 -> Adaptation des véhicules et ÉPI | D57: =CONCATENATE(A57," — ",B57," — ",C57) -> EC EAF manuelle — AO - AVEC hébergement — Adaptation des véhicules et ÉPI | E57: =IFERROR(VLOOKUP(A57,'Info - Valeurs d''ajustement'!$A$29:$F$35,4,FALSE),0) -> 0 | F57: =ROUND(E57,4) -> 0
A58: =Menus!$A$15 -> EC EAF manuelle | B58: =Menus!$A$2 -> AO - AVEC hébergement | D58: =CONCATENATE(A58," — ",B58," — ",C58) -> EC EAF manuelle — AO - AVEC hébergement — | E58: =IFERROR(VLOOKUP(A58,'Info - Valeurs d''ajustement'!$A$29:$F$35,3,FALSE),0) -> 0 | F58: 0
A59: =Menus!$A$15 -> EC EAF manuelle | B59: =Menus!$A$3 -> AO - SANS hébergement | C59: =Menus!$A$42 -> Adaptation des véhicules et ÉPI | D59: EC EAF manuelle — AO - SANS hébergement — Adaptation des véhicules et ÉPI | E59: =IFERROR(VLOOKUP(A59,'Info - Valeurs d''ajustement'!$A$42:$D$48,4,FALSE),0) -> 0 | F59: 0
A60: =Menus!$A$15 -> EC EAF manuelle | B60: =Menus!$A$3 -> AO - SANS hébergement | D60: EC EAF manuelle — AO - SANS hébergement — | E60: =IFERROR(VLOOKUP(A60,'Info - Valeurs d''ajustement'!$A$42:$D$48,3,FALSE),0) -> 0 | F60: 0
A61: =Menus!$A$15 -> EC EAF manuelle | B61: =Menus!$A$4 -> ERTS (gré à gré) | C61: =Menus!$A$39 -> Adaptation des véhicules et ÉPI | D61: EC EAF manuelle — ERTS (gré à gré) — Adaptation des véhicules et ÉPI | E61: =VLOOKUP(A61,'Info - Valeurs d''ajustement'!$A$14:$J$21,5,FALSE) -> 0 | F61: 0
A62: =Menus!$A$15 -> EC EAF manuelle | B62: =Menus!$A$4 -> ERTS (gré à gré) | D62: EC EAF manuelle — ERTS (gré à gré) — | E62: =IFERROR(VLOOKUP(A62,'Info - Valeurs d''ajustement'!$A$14:$I$20,4,FALSE),0) -> 0 | F62: 0
A63: =Menus!$A$15 -> EC EAF manuelle | B63: =Menus!$A$4 -> ERTS (gré à gré) | D63: EC EAF manuelle — ERTS (gré à gré) — | E63: =IFERROR(VLOOKUP(A63,'Info - Valeurs d''ajustement'!$A$14:$I$20,6,FALSE),0) -> 0 | F63: 0
A64: =Menus!$A$16 -> EC EAF mécanisée | B64: =Menus!$A$2 -> AO - AVEC hébergement | C64: =Menus!$A$42 -> Adaptation des véhicules et ÉPI | D64: =CONCATENATE(A64," — ",B64," — ",C64) -> EC EAF mécanisée — AO - AVEC hébergement — Adaptation des véhicules et ÉPI | E64: =IFERROR(VLOOKUP(A64,'Info - Valeurs d''ajustement'!$A$29:$F$35,4,FALSE),0) -> 0 | F64: =ROUND(E64,4) -> 0
A65: =Menus!$A$16 -> EC EAF mécanisée | B65: =Menus!$A$2 -> AO - AVEC hébergement | D65: =CONCATENATE(A65," — ",B65," — ",C65) -> EC EAF mécanisée — AO - AVEC hébergement — | E65: =IFERROR(VLOOKUP(A65,'Info - Valeurs d''ajustement'!$A$29:$F$35,3,FALSE),0) -> 0 | F65: 0
A66: =Menus!$A$16 -> EC EAF mécanisée | B66: =Menus!$A$3 -> AO - SANS hébergement | C66: =Menus!$A$42 -> Adaptation des véhicules et ÉPI | D66: EC EAF mécanisée — AO - SANS hébergement — Adaptation des véhicules et ÉPI | E66: =IFERROR(VLOOKUP(A66,'Info - Valeurs d''ajustement'!$A$42:$D$48,4,FALSE),0) -> 0 | F66: 0
A67: =Menus!$A$16 -> EC EAF mécanisée | B67: =Menus!$A$3 -> AO - SANS hébergement | D67: EC EAF mécanisée — AO - SANS hébergement — | E67: =IFERROR(VLOOKUP(A67,'Info - Valeurs d''ajustement'!$A$42:$D$48,3,FALSE),0) -> 0 | F67: 0
A68: =Menus!$A$16 -> EC EAF mécanisée | B68: =Menus!$A$4 -> ERTS (gré à gré) | C68: =Menus!$A$39 -> Adaptation des véhicules et ÉPI | D68: EC EAF mécanisée — ERTS (gré à gré) — Adaptation des véhicules et ÉPI | E68: =VLOOKUP(A68,'Info - Valeurs d''ajustement'!$A$14:$J$21,5,FALSE) -> 0 | F68: 0
A69: =Menus!$A$16 -> EC EAF mécanisée | B69: =Menus!$A$4 -> ERTS (gré à gré) | D69: EC EAF mécanisée — ERTS (gré à gré) — | E69: =VLOOKUP(A69,'Info - Valeurs d''ajustement'!$A$14:$I$20,4,FALSE) -> 0 | F69: 0
A70: =Menus!$A$16 -> EC EAF mécanisée | B70: =Menus!$A$4 -> ERTS (gré à gré) | D70: EC EAF mécanisée — ERTS (gré à gré) — | E70: =VLOOKUP(A70,'Info - Valeurs d''ajustement'!$A$14:$I$20,6,FALSE) -> 0 | F70: 0
A71: =Menus!$A$17 -> Éducation de peuplement | B71: =Menus!$A$2 -> AO - AVEC hébergement | C71: =Menus!$A$42 -> Adaptation des véhicules et ÉPI | D71: Éducation de peuplement — AO - AVEC hébergement — Adaptation des véhicules et ÉPI | E71: =VLOOKUP(A71,'Info - Valeurs d''ajustement'!$A$29:$F$35,4,FALSE) -> 0 | F71: 0
A72: =Menus!$A$17 -> Éducation de peuplement | B72: =Menus!$A$2 -> AO - AVEC hébergement | D72: Éducation de peuplement — AO - AVEC hébergement — | E72: =VLOOKUP(A72,'Info - Valeurs d''ajustement'!$A$29:$F$35,3,FALSE) -> 0 | F72: 0
A73: =Menus!$A$17 -> Éducation de peuplement | B73: =Menus!$A$3 -> AO - SANS hébergement | C73: =Menus!$A$42 -> Adaptation des véhicules et ÉPI | D73: Éducation de peuplement — AO - SANS hébergement — Adaptation des véhicules et ÉPI | E73: =VLOOKUP(A73,'Info - Valeurs d''ajustement'!$A$42:$D$48,4,FALSE) -> 0 | F73: 0
A74: =Menus!$A$17 -> Éducation de peuplement | B74: =Menus!$A$3 -> AO - SANS hébergement | D74: Éducation de peuplement — AO - SANS hébergement — | E74: =VLOOKUP(A74,'Info - Valeurs d''ajustement'!$A$42:$D$48,3,FALSE) -> 0 | F74: 0
A75: =Menus!$A$17 -> Éducation de peuplement | B75: =Menus!$A$4 -> ERTS (gré à gré) | C75: =Menus!$A$39 -> Adaptation des véhicules et ÉPI | D75: Éducation de peuplement — ERTS (gré à gré) — Adaptation des véhicules et ÉPI | E75: =VLOOKUP(A75,'Info - Valeurs d''ajustement'!$A$14:$J$21,5,FALSE) -> 0.0284 | F75: 0.0284
A76: =Menus!$A$17 -> Éducation de peuplement | B76: =Menus!$A$4 -> ERTS (gré à gré) | D76: Éducation de peuplement — ERTS (gré à gré) — | E76: =VLOOKUP(A76,'Info - Valeurs d''ajustement'!$A$14:$I$20,4,FALSE) -> 0 | F76: 0
A77: =Menus!$A$17 -> Éducation de peuplement | B77: =Menus!$A$4 -> ERTS (gré à gré) | D77: Éducation de peuplement — ERTS (gré à gré) — | E77: =VLOOKUP(A77,'Info - Valeurs d''ajustement'!$A$14:$I$20,6,FALSE) -> 0 | F77: =ROUND(E77,4)+F76 -> 0
A78: =Menus!$A$18 -> Inventaire avant traitement | B78: =Menus!$A$2 -> AO - AVEC hébergement | C78: =Menus!$A$42 -> Adaptation des véhicules et ÉPI | D78: Inventaire avant traitement — AO - AVEC hébergement — Adaptation des véhicules et ÉPI | E78: =VLOOKUP(A78,'Info - Valeurs d''ajustement'!$A$29:$F$35,4,FALSE) -> 0 | F78: 0
A79: =Menus!$A$18 -> Inventaire avant traitement | B79: =Menus!$A$2 -> AO - AVEC hébergement | D79: Inventaire avant traitement — AO - AVEC hébergement — | E79: =VLOOKUP(A79,'Info - Valeurs d''ajustement'!$A$29:$F$35,3,FALSE) -> 0 | F79: 0
A80: =Menus!$A$18 -> Inventaire avant traitement | B80: =Menus!$A$3 -> AO - SANS hébergement | C80: =Menus!$A$42 -> Adaptation des véhicules et ÉPI | D80: Inventaire avant traitement — AO - SANS hébergement — Adaptation des véhicules et ÉPI | E80: =VLOOKUP(A80,'Info - Valeurs d''ajustement'!$A$42:$D$48,4,FALSE) -> 0 | F80: 0
A81: =Menus!$A$18 -> Inventaire avant traitement | B81: =Menus!$A$3 -> AO - SANS hébergement | D81: Inventaire avant traitement — AO - SANS hébergement — | E81: =VLOOKUP(A81,'Info - Valeurs d''ajustement'!$A$42:$D$48,3,FALSE) -> 0 | F81: 0
A82: =Menus!$A$18 -> Inventaire avant traitement | B82: =Menus!$A$4 -> ERTS (gré à gré) | C82: =Menus!$A$39 -> Adaptation des véhicules et ÉPI | D82: Inventaire avant traitement — ERTS (gré à gré) — Adaptation des véhicules et ÉPI | E82: =VLOOKUP(A82,'Info - Valeurs d''ajustement'!$A$14:$J$21,5,FALSE) -> 0.0231 | F82: 0.0231
A83: =Menus!$A$18 -> Inventaire avant traitement | B83: =Menus!$A$4 -> ERTS (gré à gré) | D83: Inventaire avant traitement — ERTS (gré à gré) — | E83: =VLOOKUP(A83,'Info - Valeurs d''ajustement'!$A$14:$I$20,4,FALSE) -> 0 | F83: 0
A84: =Menus!$A$18 -> Inventaire avant traitement | B84: =Menus!$A$4 -> ERTS (gré à gré) | D84: Inventaire avant traitement — ERTS (gré à gré) — | E84: =VLOOKUP(A84,'Info - Valeurs d''ajustement'!$A$14:$I$20,6,FALSE) -> 0 | F84: 0
A85: =Menus!$A$19 -> Martelage | B85: =Menus!$A$2 -> AO - AVEC hébergement | C85: =Menus!$A$42 -> Adaptation des véhicules et ÉPI | D85: Martelage — AO - AVEC hébergement — Adaptation des véhicules et ÉPI | E85: =VLOOKUP(A85,'Info - Valeurs d''ajustement'!$A$29:$F$35,4,FALSE) -> 0 | F85: 0
A86: =Menus!$A$19 -> Martelage | B86: =Menus!$A$2 -> AO - AVEC hébergement | D86: Martelage — AO - AVEC hébergement — | E86: =VLOOKUP(A86,'Info - Valeurs d''ajustement'!$A$29:$F$35,3,FALSE) -> 0 | F86: 0
A87: =Menus!$A$19 -> Martelage | B87: =Menus!$A$3 -> AO - SANS hébergement | C87: =Menus!$A$42 -> Adaptation des véhicules et ÉPI | D87: Martelage — AO - SANS hébergement — Adaptation des véhicules et ÉPI | E87: =VLOOKUP(A87,'Info - Valeurs d''ajustement'!$A$42:$D$48,4,FALSE) -> 0 | F87: 0
A88: =Menus!$A$19 -> Martelage | B88: =Menus!$A$3 -> AO - SANS hébergement | D88: Martelage — AO - SANS hébergement — | E88: =VLOOKUP(A88,'Info - Valeurs d''ajustement'!$A$42:$D$48,3,FALSE) -> 0 | F88: 0
A89: =Menus!$A$19 -> Martelage | B89: =Menus!$A$4 -> ERTS (gré à gré) | C89: =Menus!$A$39 -> Adaptation des véhicules et ÉPI | D89: Martelage — ERTS (gré à gré) — Adaptation des véhicules et ÉPI | E89: =VLOOKUP(A89,'Info - Valeurs d''ajustement'!$A$14:$J$21,5,FALSE) -> 0.0396 | F89: 0.0396
A90: =Menus!$A$19 -> Martelage | B90: =Menus!$A$4 -> ERTS (gré à gré) | D90: Martelage — ERTS (gré à gré) — | E90: =VLOOKUP(A90,'Info - Valeurs d''ajustement'!$A$14:$I$20,4,FALSE) -> 0 | F90: 0
A91: =Menus!$A$19 -> Martelage | B91: =Menus!$A$4 -> ERTS (gré à gré) | D91: Martelage — ERTS (gré à gré) — | E91: =VLOOKUP(A91,'Info - Valeurs d''ajustement'!$A$14:$I$20,6,FALSE) -> 0 | F91: 0
A92: =Menus!$A$20 -> Régénération artificielle | B92: =Menus!$A$2 -> AO - AVEC hébergement | C92: =Menus!$A$42 -> Adaptation des véhicules et ÉPI | D92: Régénération artificielle — AO - AVEC hébergement — Adaptation des véhicules et ÉPI | E92: =VLOOKUP(A92,'Info - Valeurs d''ajustement'!$A$29:$F$35,4,FALSE) -> 0 | F92: 0
A93: =Menus!$A$20 -> Régénération artificielle | B93: =Menus!$A$2 -> AO - AVEC hébergement | D93: Régénération artificielle — AO - AVEC hébergement — | E93: =VLOOKUP(A93,'Info - Valeurs d''ajustement'!$A$29:$F$35,3,FALSE) -> 0 | F93: 0
A94: =Menus!$A$20 -> Régénération artificielle | B94: =Menus!$A$3 -> AO - SANS hébergement | C94: =Menus!$A$42 -> Adaptation des véhicules et ÉPI | D94: Régénération artificielle — AO - SANS hébergement — Adaptation des véhicules et ÉPI | E94: =VLOOKUP(A94,'Info - Valeurs d''ajustement'!$A$42:$D$48,4,FALSE) -> 0 | F94: 0
A95: =Menus!$A$20 -> Régénération artificielle | B95: =Menus!$A$3 -> AO - SANS hébergement | D95: Régénération artificielle — AO - SANS hébergement — | E95: =VLOOKUP(A95,'Info - Valeurs d''ajustement'!$A$42:$D$48,3,FALSE) -> 0 | F95: 0
A96: =Menus!$A$20 -> Régénération artificielle | B96: =Menus!$A$4 -> ERTS (gré à gré) | C96: =Menus!$A$39 -> Adaptation des véhicules et ÉPI | D96: Régénération artificielle — ERTS (gré à gré) — Adaptation des véhicules et ÉPI | E96: =VLOOKUP(A96,'Info - Valeurs d''ajustement'!$A$14:$J$21,5,FALSE) -> 0.0073 | F96: =ROUND(E96,4) -> 0.0073
A97: =Menus!$A$20 -> Régénération artificielle | B97: =Menus!$A$4 -> ERTS (gré à gré) | D97: Régénération artificielle — ERTS (gré à gré) — | E97: =VLOOKUP(A97,'Info - Valeurs d''ajustement'!$A$14:$I$20,4,FALSE) -> 0 | F97: 0
A98: =Menus!$A$20 -> Régénération artificielle | B98: =Menus!$A$4 -> ERTS (gré à gré) | D98: Régénération artificielle — ERTS (gré à gré) — | E98: =VLOOKUP(A98,'Info - Valeurs d''ajustement'!$A$14:$I$20,6,FALSE) -> 0 | F98: =ROUND(E98,4)+F97 -> 0
A99: =Menus!$A$21 -> Traitements du site | B99: =Menus!$A$2 -> AO - AVEC hébergement | C99: =Menus!$A$42 -> Adaptation des véhicules et ÉPI | D99: Traitements du site — AO - AVEC hébergement — Adaptation des véhicules et ÉPI | E99: =VLOOKUP(A99,'Info - Valeurs d''ajustement'!$A$29:$F$35,4,FALSE) -> 0 | F99: 0
A100: =Menus!$A$21 -> Traitements du site | B100: =Menus!$A$2 -> AO - AVEC hébergement | D100: Traitements du site — AO - AVEC hébergement — | E100: =VLOOKUP(A100,'Info - Valeurs d''ajustement'!$A$29:$F$35,3,FALSE) -> 0 | F100: 0
A101: =Menus!$A$21 -> Traitements du site | B101: =Menus!$A$3 -> AO - SANS hébergement | C101: =Menus!$A$42 -> Adaptation des véhicules et ÉPI | D101: Traitements du site — AO - SANS hébergement — Adaptation des véhicules et ÉPI | E101: =VLOOKUP(A101,'Info - Valeurs d''ajustement'!$A$42:$D$48,4,FALSE) -> 0 | F101: 0
A102: =Menus!$A$21 -> Traitements du site | B102: =Menus!$A$3 -> AO - SANS hébergement | D102: Traitements du site — AO - SANS hébergement — | E102: =VLOOKUP(A102,'Info - Valeurs d''ajustement'!$A$42:$D$48,3,FALSE) -> 0 | F102: 0
A103: =Menus!$A$21 -> Traitements du site | B103: =Menus!$A$4 -> ERTS (gré à gré) | C103: =Menus!$A$39 -> Adaptation des véhicules et ÉPI | D103: Traitements du site — ERTS (gré à gré) — Adaptation des véhicules et ÉPI | E103: =VLOOKUP(A103,'Info - Valeurs d''ajustement'!$A$14:$J$21,5,FALSE) -> 0 | F103: 0
A104: =Menus!$A$21 -> Traitements du site | B104: =Menus!$A$4 -> ERTS (gré à gré) | D104: Traitements du site — ERTS (gré à gré) — | E104: =VLOOKUP(A104,'Info - Valeurs d''ajustement'!$A$14:$I$20,4,FALSE) -> 0 | F104: 0
A105: =Menus!$A$21 -> Traitements du site | B105: =Menus!$A$4 -> ERTS (gré à gré) | D105: Traitements du site — ERTS (gré à gré) — | E105: =VLOOKUP(A105,'Info - Valeurs d''ajustement'!$A$14:$I$20,6,FALSE) -> 0 | F105: 0
A106: =Menus!$A$22 -> Travaux techniques autres | B106: =Menus!$A$2 -> AO - AVEC hébergement | C106: =Menus!$A$42 -> Adaptation des véhicules et ÉPI | D106: Travaux techniques autres — AO - AVEC hébergement — Adaptation des véhicules et ÉPI | E106: =VLOOKUP(A106,'Info - Valeurs d''ajustement'!$A$29:$F$35,4,FALSE) -> 0 | F106: 0
A107: =Menus!$A$22 -> Travaux techniques autres | B107: =Menus!$A$2 -> AO - AVEC hébergement | D107: Travaux techniques autres — AO - AVEC hébergement — | E107: =VLOOKUP(A107,'Info - Valeurs d''ajustement'!$A$29:$F$35,3,FALSE) -> 0 | F107: 0
A108: =Menus!$A$22 -> Travaux techniques autres | B108: =Menus!$A$3 -> AO - SANS hébergement | C108: =Menus!$A$42 -> Adaptation des véhicules et ÉPI | D108: Travaux techniques autres — AO - SANS hébergement — Adaptation des véhicules et ÉPI | E108: =VLOOKUP(A108,'Info - Valeurs d''ajustement'!$A$42:$D$48,4,FALSE) -> 0 | F108: 0
A109: =Menus!$A$22 -> Travaux techniques autres | B109: =Menus!$A$3 -> AO - SANS hébergement | D109: Travaux techniques autres — AO - SANS hébergement — | E109: =VLOOKUP(A109,'Info - Valeurs d''ajustement'!$A$42:$D$48,3,FALSE) -> 0 | F109: 0
A110: =Menus!$A$22 -> Travaux techniques autres | B110: =Menus!$A$4 -> ERTS (gré à gré) | C110: =Menus!$A$39 -> Adaptation des véhicules et ÉPI | D110: Travaux techniques autres — ERTS (gré à gré) — Adaptation des véhicules et ÉPI | E110: =VLOOKUP(A110,'Info - Valeurs d''ajustement'!$A$14:$J$21,5,FALSE) -> 0 | F110: 0
A111: =Menus!$A$22 -> Travaux techniques autres | B111: =Menus!$A$4 -> ERTS (gré à gré) | D111: Travaux techniques autres — ERTS (gré à gré) — | E111: =VLOOKUP(A111,'Info - Valeurs d''ajustement'!$A$14:$I$20,4,FALSE) -> 0 | F111: 0
A112: =Menus!$A$22 -> Travaux techniques autres | B112: =Menus!$A$4 -> ERTS (gré à gré) | D112: Travaux techniques autres — ERTS (gré à gré) — | E112: =VLOOKUP(A112,'Info - Valeurs d''ajustement'!$A$14:$I$20,6,FALSE) -> 0 | F112: 0
A114: Ajustement 4 | B114: Hébergement des travailleurs
A115: Famille ou type | B115: Mode d'attribution | C115: Type d'hébergement | D115: Concatener (RechercheV) | E115: Valeur brute | F115: Valeur nette
A116: =Menus!$A$15 -> EC EAF manuelle | B116: =Menus!$A$2 -> AO - AVEC hébergement | C116: =Menus!$A$31 -> Camp forestier | D116: =CONCATENATE(A116," — ",B116," — ",C116) -> EC EAF manuelle — AO - AVEC hébergement — Camp forestier | E116: =IFERROR(VLOOKUP(A116,'Info - Valeurs d''ajustement'!$A$29:$F$35,6,FALSE),0) -> 0 | F116: =ROUND(E116,4) -> 0
A117: =Menus!$A$15 -> EC EAF manuelle | B117: =Menus!$A$2 -> AO - AVEC hébergement | C117: =Menus!$A$32 -> Hébergement adéquat (hôtel, pourvoirie ou autre unité individuelle) | D117: EC EAF manuelle — AO - AVEC hébergement — Hébergement adéquat (hôtel, pourvoirie ou autre unité individuelle) | E117: =IFERROR(VLOOKUP(A117,'Info - Valeurs d''ajustement'!$A$29:$F$35,5,FALSE),0) -> 0 | F117: 0
A118: =Menus!$A$15 -> EC EAF manuelle | B118: =Menus!$A$4 -> ERTS (gré à gré) | C118: =Menus!$A$31 -> Camp forestier | D118: EC EAF manuelle — ERTS (gré à gré) — Camp forestier | E118: =IFERROR(VLOOKUP(A118,'Info - Valeurs d''ajustement'!$A$14:$J$21,8,FALSE),0) -> 0.0375 | F118: 0.0375
A119: =Menus!$A$15 -> EC EAF manuelle | B119: =Menus!$A$4 -> ERTS (gré à gré) | C119: =Menus!$A$32 -> Hébergement adéquat (hôtel, pourvoirie ou autre unité individuelle) | D119: EC EAF manuelle — ERTS (gré à gré) — Hébergement adéquat (hôtel, pourvoirie ou autre unité individuelle) | E119: =IFERROR(VLOOKUP(A119,'Info - Valeurs d''ajustement'!$A$14:$J$21,7,FALSE),0) -> 0.0375 | F119: 0.0375
A120: =Menus!$A$16 -> EC EAF mécanisée | B120: =Menus!$A$2 -> AO - AVEC hébergement | C120: =Menus!$A$31 -> Camp forestier | D120: =CONCATENATE(A120," — ",B120," — ",C120) -> EC EAF mécanisée — AO - AVEC hébergement — Camp forestier | E120: =IFERROR(VLOOKUP(A120,'Info - Valeurs d''ajustement'!$A$29:$F$35,6,FALSE),0) -> 0 | F120: =ROUND(E120,4) -> 0
A121: =Menus!$A$16 -> EC EAF mécanisée | B121: =Menus!$A$2 -> AO - AVEC hébergement | C121: =Menus!$A$32 -> Hébergement adéquat (hôtel, pourvoirie ou autre unité individuelle) | D121: EC EAF mécanisée — AO - AVEC hébergement — Hébergement adéquat (hôtel, pourvoirie ou autre unité individuelle) | E121: =IFERROR(VLOOKUP(A121,'Info - Valeurs d''ajustement'!$A$29:$F$35,5,FALSE),0) -> 0 | F121: 0
A122: =Menus!$A$16 -> EC EAF mécanisée | B122: =Menus!$A$4 -> ERTS (gré à gré) | C122: =Menus!$A$31 -> Camp forestier | D122: EC EAF mécanisée — ERTS (gré à gré) — Camp forestier | E122: =VLOOKUP(A122,'Info - Valeurs d''ajustement'!$A$14:$J$21,8,FALSE) -> 0.0375 | F122: 0.0375
A123: =Menus!$A$16 -> EC EAF mécanisée | B123: =Menus!$A$4 -> ERTS (gré à gré) | C123: =Menus!$A$32 -> Hébergement adéquat (hôtel, pourvoirie ou autre unité individuelle) | D123: EC EAF mécanisée — ERTS (gré à gré) — Hébergement adéquat (hôtel, pourvoirie ou autre unité individuelle) | E123: =VLOOKUP(A123,'Info - Valeurs d''ajustement'!$A$14:$J$21,7,FALSE) -> 0.0375 | F123: 0.0375
A124: =Menus!$A$17 -> Éducation de peuplement | B124: =Menus!$A$2 -> AO - AVEC hébergement | C124: =Menus!$A$31 -> Camp forestier | D124: Éducation de peuplement — AO - AVEC hébergement — Camp forestier | E124: =VLOOKUP(A124,'Info - Valeurs d''ajustement'!$A$29:$F$35,6,FALSE) -> 0 | F124: 0
A125: =Menus!$A$17 -> Éducation de peuplement | B125: =Menus!$A$2 -> AO - AVEC hébergement | C125: =Menus!$A$32 -> Hébergement adéquat (hôtel, pourvoirie ou autre unité individuelle) | D125: Éducation de peuplement — AO - AVEC hébergement — Hébergement adéquat (hôtel, pourvoirie ou autre unité individuelle) | E125: =VLOOKUP(A125,'Info - Valeurs d''ajustement'!$A$29:$F$35,5,FALSE) -> 0 | F125: 0
A126: =Menus!$A$17 -> Éducation de peuplement | B126: =Menus!$A$4 -> ERTS (gré à gré) | C126: =Menus!$A$31 -> Camp forestier | D126: Éducation de peuplement — ERTS (gré à gré) — Camp forestier | E126: =VLOOKUP(A126,'Info - Valeurs d''ajustement'!$A$14:$J$21,8,FALSE) -> 0.0576 | F126: 0.0576
A127: =Menus!$A$17 -> Éducation de peuplement | B127: =Menus!$A$4 -> ERTS (gré à gré) | C127: =Menus!$A$32 -> Hébergement adéquat (hôtel, pourvoirie ou autre unité individuelle) | D127: Éducation de peuplement — ERTS (gré à gré) — Hébergement adéquat (hôtel, pourvoirie ou autre unité individuelle) | E127: =VLOOKUP(A127,'Info - Valeurs d''ajustement'!$A$14:$J$21,7,FALSE) -> 0.2302 | F127: 0.2302
A128: =Menus!$A$18 -> Inventaire avant traitement | B128: =Menus!$A$2 -> AO - AVEC hébergement | C128: =Menus!$A$31 -> Camp forestier | D128: Inventaire avant traitement — AO - AVEC hébergement — Camp forestier | E128: =VLOOKUP(A128,'Info - Valeurs d''ajustement'!$A$29:$F$35,6,FALSE) -> 0 | F128: 0
A129: =Menus!$A$18 -> Inventaire avant traitement | B129: =Menus!$A$2 -> AO - AVEC hébergement | C129: =Menus!$A$32 -> Hébergement adéquat (hôtel, pourvoirie ou autre unité individuelle) | D129: Inventaire avant traitement — AO - AVEC hébergement — Hébergement adéquat (hôtel, pourvoirie ou autre unité individuelle) | E129: =VLOOKUP(A129,'Info - Valeurs d''ajustement'!$A$29:$F$35,5,FALSE) -> 0 | F129: 0
A130: =Menus!$A$18 -> Inventaire avant traitement | B130: =Menus!$A$4 -> ERTS (gré à gré) | C130: =Menus!$A$31 -> Camp forestier | D130: Inventaire avant traitement — ERTS (gré à gré) — Camp forestier | E130: =VLOOKUP(A130,'Info - Valeurs d''ajustement'!$A$14:$J$21,8,FALSE) -> 0.0404 | F130: 0.0404
A131: =Menus!$A$18 -> Inventaire avant traitement | B131: =Menus!$A$4 -> ERTS (gré à gré) | C131: =Menus!$A$32 -> Hébergement adéquat (hôtel, pourvoirie ou autre unité individuelle) | D131: Inventaire avant traitement — ERTS (gré à gré) — Hébergement adéquat (hôtel, pourvoirie ou autre unité individuelle) | E131: =VLOOKUP(A131,'Info - Valeurs d''ajustement'!$A$14:$J$21,7,FALSE) -> 0.1616 | F131: 0.1616
A132: =Menus!$A$19 -> Martelage | B132: =Menus!$A$2 -> AO - AVEC hébergement | C132: =Menus!$A$31 -> Camp forestier | D132: Martelage — AO - AVEC hébergement — Camp forestier | E132: =VLOOKUP(A132,'Info - Valeurs d''ajustement'!$A$29:$F$35,6,FALSE) -> 0 | F132: 0
A133: =Menus!$A$19 -> Martelage | B133: =Menus!$A$2 -> AO - AVEC hébergement | C133: =Menus!$A$32 -> Hébergement adéquat (hôtel, pourvoirie ou autre unité individuelle) | D133: Martelage — AO - AVEC hébergement — Hébergement adéquat (hôtel, pourvoirie ou autre unité individuelle) | E133: =VLOOKUP(A133,'Info - Valeurs d''ajustement'!$A$29:$F$35,5,FALSE) -> 0 | F133: 0
A134: =Menus!$A$19 -> Martelage | B134: =Menus!$A$4 -> ERTS (gré à gré) | C134: =Menus!$A$31 -> Camp forestier | D134: Martelage — ERTS (gré à gré) — Camp forestier | E134: =VLOOKUP(A134,'Info - Valeurs d''ajustement'!$A$14:$J$21,8,FALSE) -> 0.0277 | F134: 0.0277
A135: =Menus!$A$19 -> Martelage | B135: =Menus!$A$4 -> ERTS (gré à gré) | C135: =Menus!$A$32 -> Hébergement adéquat (hôtel, pourvoirie ou autre unité individuelle) | D135: Martelage — ERTS (gré à gré) — Hébergement adéquat (hôtel, pourvoirie ou autre unité individuelle) | E135: =VLOOKUP(A135,'Info - Valeurs d''ajustement'!$A$14:$J$21,7,FALSE) -> 0.111 | F135: 0.111
A136: =Menus!$A$20 -> Régénération artificielle | B136: =Menus!$A$2 -> AO - AVEC hébergement | C136: =Menus!$A$31 -> Camp forestier | D136: Régénération artificielle — AO - AVEC hébergement — Camp forestier | E136: =VLOOKUP(A136,'Info - Valeurs d''ajustement'!$A$29:$F$35,6,FALSE) -> 0 | F136: 0
A137: =Menus!$A$20 -> Régénération artificielle | B137: =Menus!$A$2 -> AO - AVEC hébergement | C137: =Menus!$A$32 -> Hébergement adéquat (hôtel, pourvoirie ou autre unité individuelle) | D137: Régénération artificielle — AO - AVEC hébergement — Hébergement adéquat (hôtel, pourvoirie ou autre unité individuelle) | E137: =VLOOKUP(A137,'Info - Valeurs d''ajustement'!$A$29:$F$35,5,FALSE) -> 0 | F137: 0
A138: =Menus!$A$20 -> Régénération artificielle | B138: =Menus!$A$4 -> ERTS (gré à gré) | C138: =Menus!$A$31 -> Camp forestier | D138: Régénération artificielle — ERTS (gré à gré) — Camp forestier | E138: =VLOOKUP(A138,'Info - Valeurs d''ajustement'!$A$14:$J$21,8,FALSE) -> 0.0526 | F138: 0.0526
A139: =Menus!$A$20 -> Régénération artificielle | B139: =Menus!$A$4 -> ERTS (gré à gré) | C139: =Menus!$A$32 -> Hébergement adéquat (hôtel, pourvoirie ou autre unité individuelle) | D139: Régénération artificielle — ERTS (gré à gré) — Hébergement adéquat (hôtel, pourvoirie ou autre unité individuelle) | E139: =VLOOKUP(A139,'Info - Valeurs d''ajustement'!$A$14:$J$21,7,FALSE) -> 0.2103 | F139: 0.2103
A140: =Menus!$A$21 -> Traitements du site | B140: =Menus!$A$2 -> AO - AVEC hébergement | C140: =Menus!$A$31 -> Camp forestier | D140: Traitements du site — AO - AVEC hébergement — Camp forestier | E140: =VLOOKUP(A140,'Info - Valeurs d''ajustement'!$A$29:$F$35,6,FALSE) -> 0 | F140: 0
A141: =Menus!$A$21 -> Traitements du site | B141: =Menus!$A$2 -> AO - AVEC hébergement | C141: =Menus!$A$32 -> Hébergement adéquat (hôtel, pourvoirie ou autre unité individuelle) | D141: Traitements du site — AO - AVEC hébergement — Hébergement adéquat (hôtel, pourvoirie ou autre unité individuelle) | E141: =VLOOKUP(A141,'Info - Valeurs d''ajustement'!$A$29:$F$35,5,FALSE) -> 0 | F141: 0
A142: =Menus!$A$21 -> Traitements du site | B142: =Menus!$A$4 -> ERTS (gré à gré) | C142: =Menus!$A$31 -> Camp forestier | D142: Traitements du site — ERTS (gré à gré) — Camp forestier | E142: =VLOOKUP(A142,'Info - Valeurs d''ajustement'!$A$14:$J$21,8,FALSE) -> 0.0231 | F142: 0.0231
A143: =Menus!$A$21 -> Traitements du site | B143: =Menus!$A$4 -> ERTS (gré à gré) | C143: =Menus!$A$32 -> Hébergement adéquat (hôtel, pourvoirie ou autre unité individuelle) | D143: Traitements du site — ERTS (gré à gré) — Hébergement adéquat (hôtel, pourvoirie ou autre unité individuelle) | E143: =VLOOKUP(A143,'Info - Valeurs d''ajustement'!$A$14:$J$21,7,FALSE) -> 0.0925 | F143: 0.0925
A144: =Menus!$A$22 -> Travaux techniques autres | B144: =Menus!$A$2 -> AO - AVEC hébergement | C144: =Menus!$A$31 -> Camp forestier | D144: Travaux techniques autres — AO - AVEC hébergement — Camp forestier | E144: =VLOOKUP(A144,'Info - Valeurs d''ajustement'!$A$29:$F$35,6,FALSE) -> 0 | F144: 0
A145: =Menus!$A$22 -> Travaux techniques autres | B145: =Menus!$A$2 -> AO - AVEC hébergement | C145: =Menus!$A$32 -> Hébergement adéquat (hôtel, pourvoirie ou autre unité individuelle) | D145: Travaux techniques autres — AO - AVEC hébergement — Hébergement adéquat (hôtel, pourvoirie ou autre unité individuelle) | E145: =VLOOKUP(A145,'Info - Valeurs d''ajustement'!$A$29:$F$35,5,FALSE) -> 0 | F145: 0
A146: =Menus!$A$22 -> Travaux techniques autres | B146: =Menus!$A$4 -> ERTS (gré à gré) | C146: =Menus!$A$31 -> Camp forestier | D146: Travaux techniques autres — ERTS (gré à gré) — Camp forestier | E146: =VLOOKUP(A146,'Info - Valeurs d''ajustement'!$A$14:$J$21,8,FALSE) -> 0.0404 | F146: 0.0404
A147: =Menus!$A$22 -> Travaux techniques autres | B147: =Menus!$A$4 -> ERTS (gré à gré) | C147: =Menus!$A$32 -> Hébergement adéquat (hôtel, pourvoirie ou autre unité individuelle) | D147: Travaux techniques autres — ERTS (gré à gré) — Hébergement adéquat (hôtel, pourvoirie ou autre unité individuelle) | E147: =VLOOKUP(A147,'Info - Valeurs d''ajustement'!$A$14:$J$21,7,FALSE) -> 0.1616 | F147: 0.1616
A149: Ajustement 5 - Retiré | B149: Manutention des plants
A150: Famille ou type | B150: Mode d'attribution | C150: Concatener (RechercheV) | D150: Valeur brute | E150: Valeur nette
A151: =Menus!$A$15 -> EC EAF manuelle | B151: =Menus!$A$2 -> AO - AVEC hébergement | C151: =CONCATENATE(A151," — ",B151) -> EC EAF manuelle — AO - AVEC hébergement | D151: 0 | E151: =ROUND(D151,4) -> 0
A152: =Menus!$A$15 -> EC EAF manuelle | B152: =Menus!$A$3 -> AO - SANS hébergement | C152: EC EAF manuelle — AO - SANS hébergement | D152: 0 | E152: 0
A153: =Menus!$A$15 -> EC EAF manuelle | B153: =Menus!$A$4 -> ERTS (gré à gré) | C153: EC EAF manuelle — ERTS (gré à gré) | D153: =VLOOKUP(A153,'Info - Valeurs d''ajustement'!$A$14:$J$21,9,FALSE) -> 0 | E153: 0
A154: =Menus!$A$16 -> EC EAF mécanisée | B154: =Menus!$A$2 -> AO - AVEC hébergement | C154: =CONCATENATE(A154," — ",B154) -> EC EAF mécanisée — AO - AVEC hébergement | D154: 0 | E154: =ROUND(D154,4) -> 0
A155: =Menus!$A$16 -> EC EAF mécanisée | B155: =Menus!$A$3 -> AO - SANS hébergement | C155: EC EAF mécanisée — AO - SANS hébergement | D155: 0 | E155: 0
A156: =Menus!$A$16 -> EC EAF mécanisée | B156: =Menus!$A$4 -> ERTS (gré à gré) | C156: EC EAF mécanisée — ERTS (gré à gré) | D156: =VLOOKUP(A156,'Info - Valeurs d''ajustement'!$A$14:$J$21,9,FALSE) -> 0 | E156: 0
A157: =Menus!$A$17 -> Éducation de peuplement | B157: =Menus!$A$2 -> AO - AVEC hébergement | C157: Éducation de peuplement — AO - AVEC hébergement | D157: 0 | E157: 0
A158: =Menus!$A$17 -> Éducation de peuplement | B158: =Menus!$A$3 -> AO - SANS hébergement | C158: Éducation de peuplement — AO - SANS hébergement | D158: 0 | E158: 0
A159: =Menus!$A$17 -> Éducation de peuplement | B159: =Menus!$A$4 -> ERTS (gré à gré) | C159: Éducation de peuplement — ERTS (gré à gré) | D159: =VLOOKUP(A159,'Info - Valeurs d''ajustement'!$A$14:$J$21,9,FALSE) -> 0 | E159: 0
A160: =Menus!$A$18 -> Inventaire avant traitement | B160: =Menus!$A$2 -> AO - AVEC hébergement | C160: Inventaire avant traitement — AO - AVEC hébergement | D160: 0 | E160: 0
A161: =Menus!$A$18 -> Inventaire avant traitement | B161: =Menus!$A$3 -> AO - SANS hébergement | C161: Inventaire avant traitement — AO - SANS hébergement | D161: 0 | E161: 0
A162: =Menus!$A$18 -> Inventaire avant traitement | B162: =Menus!$A$4 -> ERTS (gré à gré) | C162: Inventaire avant traitement — ERTS (gré à gré) | D162: =VLOOKUP(A162,'Info - Valeurs d''ajustement'!$A$14:$J$21,9,FALSE) -> 0 | E162: 0
A163: =Menus!$A$19 -> Martelage | B163: =Menus!$A$2 -> AO - AVEC hébergement | C163: Martelage — AO - AVEC hébergement | D163: 0 | E163: 0
A164: =Menus!$A$19 -> Martelage | B164: =Menus!$A$3 -> AO - SANS hébergement | C164: Martelage — AO - SANS hébergement | D164: 0 | E164: 0
A165: =Menus!$A$19 -> Martelage | B165: =Menus!$A$4 -> ERTS (gré à gré) | C165: Martelage — ERTS (gré à gré) | D165: =VLOOKUP(A165,'Info - Valeurs d''ajustement'!$A$14:$J$21,9,FALSE) -> 0 | E165: 0
A166: =Menus!$A$20 -> Régénération artificielle | B166: =Menus!$A$2 -> AO - AVEC hébergement | C166: Régénération artificielle — AO - AVEC hébergement | D166: 0 | E166: 0
A167: =Menus!$A$20 -> Régénération artificielle | B167: =Menus!$A$3 -> AO - SANS hébergement | C167: Régénération artificielle — AO - SANS hébergement | D167: 0 | E167: 0
A168: =Menus!$A$20 -> Régénération artificielle | B168: =Menus!$A$4 -> ERTS (gré à gré) | C168: Régénération artificielle — ERTS (gré à gré) | D168: =VLOOKUP(A168,'Info - Valeurs d''ajustement'!$A$14:$J$21,9,FALSE) -> 0 | E168: 0
A169: =Menus!$A$21 -> Traitements du site | B169: =Menus!$A$2 -> AO - AVEC hébergement | C169: Traitements du site — AO - AVEC hébergement | D169: 0 | E169: 0
A170: =Menus!$A$21 -> Traitements du site | B170: =Menus!$A$3 -> AO - SANS hébergement | C170: Traitements du site — AO - SANS hébergement | D170: 0 | E170: 0
A171: =Menus!$A$21 -> Traitements du site | B171: =Menus!$A$4 -> ERTS (gré à gré) | C171: Traitements du site — ERTS (gré à gré) | D171: =VLOOKUP(A171,'Info - Valeurs d''ajustement'!$A$14:$J$21,9,FALSE) -> 0 | E171: 0
A172: =Menus!$A$22 -> Travaux techniques autres | B172: =Menus!$A$2 -> AO - AVEC hébergement | C172: Travaux techniques autres — AO - AVEC hébergement | D172: 0 | E172: 0
A173: =Menus!$A$22 -> Travaux techniques autres | B173: =Menus!$A$3 -> AO - SANS hébergement | C173: Travaux techniques autres — AO - SANS hébergement | D173: 0 | E173: 0
A174: =Menus!$A$22 -> Travaux techniques autres | B174: =Menus!$A$4 -> ERTS (gré à gré) | C174: Travaux techniques autres — ERTS (gré à gré) | D174: =VLOOKUP(A174,'Info - Valeurs d''ajustement'!$A$14:$J$21,9,FALSE) -> 0 | E174: 0
A176: Ajustement 6 | C176: Ajustement pour la hausse des prix - s'applique sur le taux d'exécution avant les ajustements
A177: Famille ou type | B177: Mode d'attribution | C177: Concatener (RechercheV) | D177: Valeur brute | E177: Valeur nette
A178: =Menus!$A$15 -> EC EAF manuelle | B178: =Menus!$A$2 -> AO - AVEC hébergement | C178: =CONCATENATE(A178," — ",B178) -> EC EAF manuelle — AO - AVEC hébergement | D178: 0 | E178: =ROUND(D178,4) -> 0
A179: =Menus!$A$15 -> EC EAF manuelle | B179: =Menus!$A$3 -> AO - SANS hébergement | C179: EC EAF manuelle — AO - SANS hébergement | D179: 0 | E179: 0
A180: =Menus!$A$15 -> EC EAF manuelle | B180: =Menus!$A$4 -> ERTS (gré à gré) | C180: EC EAF manuelle — ERTS (gré à gré) | D180: =VLOOKUP(A180,'Info - Valeurs d''ajustement'!$A$14:$J$21,10,FALSE) -> 0.08620529686 | E180: 0.0862
A181: =Menus!$A$16 -> EC EAF mécanisée | B181: =Menus!$A$2 -> AO - AVEC hébergement | C181: =CONCATENATE(A181," — ",B181) -> EC EAF mécanisée — AO - AVEC hébergement | D181: 0 | E181: =ROUND(D181,4) -> 0
A182: =Menus!$A$16 -> EC EAF mécanisée | B182: =Menus!$A$3 -> AO - SANS hébergement | C182: EC EAF mécanisée — AO - SANS hébergement | D182: 0 | E182: 0
A183: =Menus!$A$16 -> EC EAF mécanisée | B183: =Menus!$A$4 -> ERTS (gré à gré) | C183: EC EAF mécanisée — ERTS (gré à gré) | D183: =VLOOKUP(A183,'Info - Valeurs d''ajustement'!$A$14:$J$21,10,FALSE) -> 0.1377981938 | E183: 0.1378
A184: =Menus!$A$17 -> Éducation de peuplement | B184: =Menus!$A$2 -> AO - AVEC hébergement | C184: Éducation de peuplement — AO - AVEC hébergement | D184: 0 | E184: 0
A185: =Menus!$A$17 -> Éducation de peuplement | B185: =Menus!$A$3 -> AO - SANS hébergement | C185: Éducation de peuplement — AO - SANS hébergement | D185: 0 | E185: 0
A186: =Menus!$A$17 -> Éducation de peuplement | B186: =Menus!$A$4 -> ERTS (gré à gré) | C186: Éducation de peuplement — ERTS (gré à gré) | D186: =VLOOKUP(A186,'Info - Valeurs d''ajustement'!$A$14:$J$21,10,FALSE) -> 0.0483 | E186: 0.0483
A187: =Menus!$A$18 -> Inventaire avant traitement | B187: =Menus!$A$2 -> AO - AVEC hébergement | C187: Inventaire avant traitement — AO - AVEC hébergement | D187: 0 | E187: 0
A188: =Menus!$A$18 -> Inventaire avant traitement | B188: =Menus!$A$3 -> AO - SANS hébergement | C188: Inventaire avant traitement — AO - SANS hébergement | D188: 0 | E188: 0
A189: =Menus!$A$18 -> Inventaire avant traitement | B189: =Menus!$A$4 -> ERTS (gré à gré) | C189: Inventaire avant traitement — ERTS (gré à gré) | D189: =VLOOKUP(A189,'Info - Valeurs d''ajustement'!$A$14:$J$21,10,FALSE) -> 0.0535 | E189: 0.0535
A190: =Menus!$A$19 -> Martelage | B190: =Menus!$A$2 -> AO - AVEC hébergement | C190: Martelage — AO - AVEC hébergement | D190: 0 | E190: 0
A191: =Menus!$A$19 -> Martelage | B191: =Menus!$A$3 -> AO - SANS hébergement | C191: Martelage — AO - SANS hébergement | D191: 0 | E191: 0
A192: =Menus!$A$19 -> Martelage | B192: =Menus!$A$4 -> ERTS (gré à gré) | C192: Martelage — ERTS (gré à gré) | D192: =VLOOKUP(A192,'Info - Valeurs d''ajustement'!$A$14:$J$21,10,FALSE) -> 0.0523 | E192: 0.0523
A193: =Menus!$A$20 -> Régénération artificielle | B193: =Menus!$A$2 -> AO - AVEC hébergement | C193: Régénération artificielle — AO - AVEC hébergement | D193: 0 | E193: 0
A194: =Menus!$A$20 -> Régénération artificielle | B194: =Menus!$A$3 -> AO - SANS hébergement | C194: Régénération artificielle — AO - SANS hébergement | D194: 0 | E194: 0
A195: =Menus!$A$20 -> Régénération artificielle | B195: =Menus!$A$4 -> ERTS (gré à gré) | C195: Régénération artificielle — ERTS (gré à gré) | D195: =VLOOKUP(A195,'Info - Valeurs d''ajustement'!$A$14:$J$21,10,FALSE) -> 0.0564 | E195: 0.0564
A196: =Menus!$A$21 -> Traitements du site | B196: =Menus!$A$2 -> AO - AVEC hébergement | C196: Traitements du site — AO - AVEC hébergement | D196: 0 | E196: 0
A197: =Menus!$A$21 -> Traitements du site | B197: =Menus!$A$3 -> AO - SANS hébergement | C197: Traitements du site — AO - SANS hébergement | D197: 0 | E197: 0
A198: =Menus!$A$21 -> Traitements du site | B198: =Menus!$A$4 -> ERTS (gré à gré) | C198: Traitements du site — ERTS (gré à gré) | D198: =VLOOKUP(A198,'Info - Valeurs d''ajustement'!$A$14:$J$21,10,FALSE) -> 0.1121 | E198: 0.1121
A199: =Menus!$A$22 -> Travaux techniques autres | B199: =Menus!$A$2 -> AO - AVEC hébergement | C199: Travaux techniques autres — AO - AVEC hébergement | D199: 0 | E199: 0
A200: =Menus!$A$22 -> Travaux techniques autres | B200: =Menus!$A$3 -> AO - SANS hébergement | C200: Travaux techniques autres — AO - SANS hébergement | D200: 0 | E200: 0
A201: =Menus!$A$22 -> Travaux techniques autres | B201: =Menus!$A$4 -> ERTS (gré à gré) | C201: Travaux techniques autres — ERTS (gré à gré) | D201: =VLOOKUP(A201,'Info - Valeurs d''ajustement'!$A$14:$J$21,10,FALSE) -> 0.0535 | E201: 0.0535

Sheet Log (hidden)
A1: Usager | B1: Accès | C1: OS | D1: Version Excel
A2: Pouliot, Simon (BMMB) | B2: 2022-04-27T07:29:02 | C2: Windows (64-bit) NT 10.00 | D2: 16
A3: St-Pierre, Stéphane (BMMB) | B3: 2022-06-15T13:10:39 | C3: Windows (64-bit) NT 10.00 | D3: 16
A4: St-Pierre, Stéphane (BMMB) | B4: 2022-06-15T13:59:19 | C4: Windows (64-bit) NT 10.00 | D4: 16
A5: Lainesse, Mélissa (BMMB) | B5: 2022-09-30T07:47:49 | C5: Windows (64-bit) NT 10.00 | D5: 16
A6: Lainesse, Mélissa (BMMB) | B6: 2022-10-03T10:15:16 | C6: Windows (64-bit) NT 10.00 | D6: 16
